Cogmind - Beta 16.1 @@@ ROGUE MODE // 2026.02.19 @ 22:51:23 // Winter2019/RPGLIKE Player: badjay Result: Destroyed by Y-72 Warden with Railgun Performance ------------- Evolutions (8) 4000 Regions Visited (28) 5600 Robots Destroyed (649) 3245 Value Destroyed (33547) 33547 Prototype IDs (155) 3100 Alien Tech Used (3) 600 Bonus (18069) 18069 TOTAL SCORE: 68161 Bonus ------- High Alert Combat Kills 11957 Follower Combat Kills 1109 Hunted by Unchained 500 Network Hubs Disabled 800 Met Data Miner 300 Built Enhanced Grunts 300 A7 Reached Mainframe 300 Met R17 at Cetus 500 Scanned by Researcher 500 Met Sigix 2000 Friendly Fire -197 Cogmind --------- Core Integrity 0/800 Matter 300/300 Energy 470/470 System Corruption 0% Temperature Cool (9) Movement Flying (85) Ox1 Location -2/Protoforge Parts ------- > --- POWER (2) -------- Improved Quantum Reactor Concept Zero-point Core > --- PROPULSION (6) --- Cesium-ion Thruster Cooled Q-thruster Concept Fieldthrust Drive Concept Fieldthrust Drive > --- UTILITY (13) ----- Concept Melee Reflex Suite Concept Projectile Intercept Suite Experimental Target Analyzer Experimental Core Analyzer Improved Armor Integrity Analyzer Femtoactuators Advanced Actuator Array Concept Reaction Jets Concept Phase Shift Module Advanced Cloaking Device Graphene Brace Concept Energy Mantle Advanced Corruption Screen > --- WEAPON (4) ------- Concept Deflector Sword Plasma Lance Experimental Jetlance Experimental Jetlance > --- INVENTORY (2) ---- Stasis Canceller Peak State ------------ > --- POWER ------------ Improved Quantum Reactor Concept Zero-point Core > --- PROPULSION ------- Cooled Q-thruster Cooled Q-thruster Cooled Q-thruster Cooled Q-thruster Concept Fieldthrust Drive Concept Fieldthrust Drive > --- UTILITY ---------- Concept Melee Reflex Suite Concept Projectile Intercept Suite Experimental Target Analyzer Experimental Core Analyzer Improved Armor Integrity Analyzer Femtoactuators Advanced Actuator Array Concept Reaction Jets Concept Phase Shift Module Advanced Cloaking Device Graphene Brace Concept Energy Mantle Advanced Corruption Screen > --- WEAPON ----------- Concept Deflector Sword Plasma Lance Experimental Jetlance Experimental Jetlance > --- INVENTORY -------- Stasis Canceller Concept Deflector Sword [Rating: 257] Favorites ----------- Power Cooled Deuterium Engine Engine Cooled Deuterium Engine Power Core Fusion Compressor Reactor Cooled Antimatter Reactor Propulsion Cooled VTOL Module Flight Unit Cooled VTOL Module Utility Microactuators Device Microactuators Processor Target Analyzer Hackware Authchip [Propulsion] Protection SHELL Armor Weapon Phasing Sabre Energy Gun Variable Charge Gun Launcher Grenade Launcher Special Weapon Molecular Deconstructor Impact Weapon Powered Hammer Slashing Weapon Phasing Sabre Piercing Weapon Lance Build | -11 -10 -10 -9 -9 -8 -7 -7 -7 -7 -6 -6 -6 -6 -6 -5 -5 -5 -5 -5 -5 -4 -4 -4 -3 -3 -2 -2 -2 ------- Run | Yrd Mat Min Mat Sto Mat Fac Low Low Dat Pro Fac Low Low Zio Pro Fac Ext Cet Arc Hub Fac Was Fac Res Tes Res Qua Frg Slots Evolved 21 | . . 3 2 1 3 5 . . . 1 1 . . . 1 . 1 . . . 1 . . 1 . 1 . . Power 1 | . . . . . . 1 . . . . . . . . . . . . . . . . . . . . . . Propulsion 5 | . . 1 . 1 1 2 . . . . . . . . . . . . . . . . . . . . . . Utility 12 | . . 2 1 . 1 1 . . . 1 1 . . . 1 . 1 . . . 1 . . 1 . 1 . . Weapon 3 | . . . 1 . 1 1 . . . . . . . . . . . . . . . . . . . . . . Parts Attached 185 | . 3 1 9 3 13 11 . . . 1 16 1 . 3 . 16 7 . . 1 6 1 22 13 12 4 6 36 Power 22 | . . . 1 . 1 2 . . . . 2 . . . . 2 . . . . . . 1 3 2 2 . 6 Engine 5 | . . . 1 . 1 1 . . . . . . . . . 1 . . . . . . . 1 . . . . Core 8 | . . . . . . 1 . . . . 2 . . . . 1 . . . . . . . 1 . 1 . 2 Reactor 9 | . . . . . . . . . . . . . . . . . . . . . . . 1 1 2 1 . 4 Propulsion 35 | . 1 . 4 2 3 5 . . . . 4 . . . . 5 . . . . 1 . 3 1 1 . . 5 Treads . | . . . . . . . . . . . . . . . . . . . . . . . . . . . . . Leg . | . . . . . . . . . . . . . . . . . . . . . . . . . . . . . Wheel . | . . . . . . . . . . . . . . . . . . . . . . . . . . . . . Hover . | . . . . . . . . . . . . . . . . . . . . . . . . . . . . . Flight 35 | . 1 . 4 2 3 5 . . . . 4 . . . . 5 . . . . 1 . 3 1 1 . . 5 Utility 98 | . 1 . 2 1 3 3 . . . 1 10 . . 1 . 8 2 . . . 4 1 17 8 8 2 6 20 Device 67 | . . . 1 1 2 3 . . . 1 10 . . 1 . 5 1 . . . 2 1 13 5 3 . 3 15 Storage . | . . . . . . . . . . . . . . . . . . . . . . . . . . . . . Processor 24 | . . . 1 . 1 . . . . . . . . . . 3 . . . . 2 . 3 2 3 2 2 5 Hackware 6 | . 1 . . . . . . . . . . . . . . . 1 . . . . . 1 1 1 . 1 . Protection 1 | . . . . . . . . . . . . . . . . . . . . . . . . . 1 . . . Artifact . | . . . . . . . . . . . . . . . . . . . . . . . . . . . . . Weapon 30 | . 1 1 2 . 6 1 . . . . . 1 . 2 . 1 5 . . 1 1 . 1 1 1 . . 5 Energy Gun 1 | . . . . . . . . . . . . . . . . . . . . 1 . . . . . . . . Energy Cannon . | . . . . . . . . . . . . . . . . . . . . . . . . . . . . . Ballistic Gun . | . . . . . . . . . . . . . . . . . . . . . . . . . . . . . Ballistic Cannon . | . . . . . . . . . . . . . . . . . . . . . . . . . . . . . Launcher 1 | . 1 . . . . . . . . . . . . . . . . . . . . . . . . . . . Special Weapon 1 | . . . . . . . . . . . . 1 . . . . . . . . . . . . . . . . Impact Weapon 7 | . . . 2 . 5 . . . . . . . . . . . . . . . . . . . . . . . Slashing Weapon 14 | . . 1 . . 1 1 . . . . . . . 1 . 1 5 . . . 1 . . . . . . 3 Piercing Weapon 6 | . . . . . . . . . . . . . . 1 . . . . . . . . 1 1 1 . . 2 Special Melee Weapon . | . . . . . . . . . . . . . . . . . . . . . . . . . . . . . Unidentified Prototypes 57 | . . . . . 1 3 . . . . 1 1 . 1 . 8 . . . . 1 1 3 6 9 1 3 18 Parts Lost 8 | . . . 3 . . . . . . . 1 . . . . . . . . . . . . . . . . 4 Power . | . . . . . . . . . . . . . . . . . . . . . . . . . . . . . Propulsion 6 | . . . 3 . . . . . . . . . . . . . . . . . . . . . . . . 3 Utility 1 | . . . . . . . . . . . 1 . . . . . . . . . . . . . . . . . Weapon 1 | . . . . . . . . . . . . . . . . . . . . . . . . . . . . 1 Highest Loss Streak 2 | . . . 2 . . . . . . . 1 . . . . . . . . . . . . . . . . 2 To Critical Strikes . | . . . . . . . . . . . . . . . . . . . . . . . . . . . . . Average Backups . | . . . . . . . . 1 1 . . 1 . . . . . . . . . . . 1 1 2 2 1 Power . | . . . . . . . . . . . . . . . . . . . . . . . . . . . . . Propulsion . | . . . . . . . . . . . . 1 . . . . . . . . . . . . . . . . Utility . | . . . . . . . . 1 1 . . . . . . . . . . . . . . 1 1 2 2 1 Weapon . | . . . . . . . . . . . . . . . . . . . . . . . . . . . . . Tool/Special . | . . . . . . . . . . . . . . . . . . . . . . . . . . . . . Unused Backups 6 | . . . . . 1 . . . . 1 2 . . . . . . . . . . . . . . . . 2 Power . | . . . . . . . . . . . . . . . . . . . . . . . . . . . . . Propulsion . | . . . . . . . . . . . . . . . . . . . . . . . . . . . . . Utility 4 | . . . . . 1 . . . . 1 2 . . . . . . . . . . . . . . . . . Weapon 2 | . . . . . . . . . . . . . . . . . . . . . . . . . . . . 2 Tool/Special . | . . . . . . . . . . . . . . . . . . . . . . . . . . . . . Average Slot Usage (%) 93 | . 48 65 67 77 92 94 94 94 94 93 94 95 95 96 100 99 99 100 100 100 95 95 99 99 100 99 100 98 Engine 2 | . . . . . 3 5 5 5 5 5 5 5 5 5 4 4 4 4 4 4 4 4 . . . . . . Core 3 | . . . . . . 2 5 5 5 5 5 5 5 5 4 4 4 4 4 4 4 4 4 4 4 3 4 3 Reactor 1 | . . . . . . . . . . . . . . . . . . . . . . . 3 4 4 4 4 4 Flight 26 | . 20 22 21 13 28 30 33 33 33 31 29 30 30 30 28 27 27 27 27 27 26 26 26 25 25 24 24 23 Device 28 | . . . 3 20 23 22 27 27 27 29 34 35 35 35 37 33 32 31 31 31 33 34 35 36 35 32 32 29 Processor 9 | . . . 12 10 7 5 5 5 5 5 5 5 5 5 4 7 9 9 9 9 8 8 10 10 12 17 17 21 Hackware 2 | . 5 22 12 10 7 4 . . . . . . . . . . 1 4 4 4 1 . . . 1 . 2 1 Impact Weapon 6 | . . . 12 21 18 13 11 11 11 10 10 10 10 9 9 7 . . . . . . . . . . . . Slashing Weapon 7 | . . 20 6 . . 4 5 5 5 5 5 4 5 5 4 5 15 18 18 15 14 17 16 13 9 8 8 5 Piercing Weapon 2 | . . . . . . . . . . . . . . 1 4 4 1 . . . . . . 3 6 8 8 9 Peak Build Rating 257 | . 6 9 15 20 43 73 73 73 73 78 89 99 89 95 100 125 133 133 133 133 138 148 167 176 196 191 196 257 Average Rating 108 | . 2 8 12 16 34 58 73 73 73 75 85 90 88 91 99 102 127 133 133 132 129 139 157 169 177 186 193 225 On Entrance 95 | . . 6 9 14 20 43 73 73 73 73 78 89 89 89 95 100 122 133 133 133 127 138 148 159 173 184 191 196 Avg Prop Armor Cover (%) 1 | . . . . . . . 1 1 1 1 1 . . . . 1 1 1 1 1 1 . . . 7 . . 1 Naked Turns 27 | . 27 . . . . . . . . . . . . . . . . . . . . . . . . . . . Heaviest Build 72 | . 3 3 7 9 25 38 38 38 38 39 45 43 43 45 46 49 52 52 52 53 53 55 65 64 64 63 63 72 Greatest Support 85 | 3 4 4 10 18 25 46 46 45 45 41 52 52 46 46 56 72 63 63 63 63 73 73 79 79 79 79 79 85 Greatest Overweight (x) 2 | . . . 1 . . . . . . . 1 . . . . . . . . . . . 1 1 2 . . 1 Average Overweight (x) . | . . . . . . . . . . . . . . . . . . . . . . . . . . . . . Largest Inventory Capacity 2 | . . . . 1 1 1 1 1 1 1 2 2 2 2 2 2 2 2 2 2 2 2 2 2 2 2 2 2 Average Capacity 1 | . . . . . 1 1 1 1 1 1 1 2 2 2 2 2 2 2 2 2 2 2 2 2 2 2 2 2 Most Carried 2 | . . . . 1 1 1 1 1 1 1 2 2 2 2 2 2 2 2 2 2 2 2 2 2 2 2 2 2 Average Carried 1 | . . . . . . . . 1 1 . . 2 1 1 1 1 1 2 2 2 1 1 1 1 1 2 2 1 Final Capacity 2 | . . . . 1 1 1 1 1 1 1 2 2 2 2 2 2 2 2 2 2 2 2 2 2 2 2 2 2 Final Carried 2 | . . . . 1 . . 1 1 1 1 2 2 2 2 2 1 2 2 2 2 1 2 2 2 2 2 2 1 Class Distribution -------------------- 86% | Hacker-Sprinter 6% | Hacker-Gladiator 6% | Hacker-Mutant Dominant Class ---------------- Hacker-Mutant | -10/Materials Hacker-Mutant | -10/Mines Hacker-Gladiator | -9/Materials Hacker-Gladiator | -9/Storage Hacker-Sprinter | -8/Materials Hacker-Sprinter | -7/Factory Hacker-Sprinter | -7/Lower Caves Hacker-Sprinter | -7/Lower Caves Hacker-Sprinter | -7/Data Miner Hacker-Sprinter | -6/Proximity Caves Hacker-Sprinter | -6/Factory Hacker-Sprinter | -6/Lower Caves Hacker-Sprinter | -6/Lower Caves Hacker-Sprinter | -6/Zion Hacker-Sprinter | -5/Proximity Caves Hacker-Sprinter | -5/Factory Hacker-Sprinter | -5/Extension Hacker-Sprinter | -5/Cetus Hacker-Sprinter | -5/Archives Hacker-Sprinter | -5/Hub_04(d) Hacker-Sprinter | -4/Factory Hacker-Sprinter | -4/Waste Hacker-Sprinter | -4/Factory Hacker-Sprinter | -3/Research Hacker-Sprinter | -3/Testing Hacker-Sprinter | -2/Research Hacker-Sprinter | -2/Quarantine Hacker-Sprinter | -2/Protoforge Resources | -11 -10 -10 -9 -9 -8 -7 -7 -7 -7 -6 -6 -6 -6 -6 -5 -5 -5 -5 -5 -5 -4 -4 -4 -3 -3 -2 -2 -2 ----------- Run | Yrd Mat Min Mat Sto Mat Fac Low Low Dat Pro Fac Low Low Zio Pro Fac Ext Cet Arc Hub Fac Was Fac Res Tes Res Qua Frg Matter Collected 11577 | 95 31 100 204 20 200 140 50 . . 30 703 186 228 51 1024 1172 856 306 90 163 758 . 1160 822 792 740 477 1179 Remotely . | . . . . . . . . . . . . . . . . . . . . . . . . . . . . . Salvage Created 30572 | . 149 95 1108 358 939 1135 797 815 . 853 1790 545 238 . 2824 2816 2596 533 . 439 1131 . 2358 1192 1351 1681 793 4036 Parts 1516 | . 9 6 49 6 31 37 22 27 . 37 94 22 17 . 92 128 117 20 . 19 50 . 138 68 87 135 43 262 Haulers Intercepted 29 | . 1 . 3 . 3 4 . . . . 2 . . . . 8 1 . . 1 . . 1 4 . 1 . . Recyclers Shooed . | . . . . . . . . . . . . . . . . . . . . . . . . . . . . . Parts Field Recycled . | . . . . . . . . . . . . . . . . . . . . . . . . . . . . . Retrieved Matter . | . . . . . . . . . . . . . . . . . . . . . . . . . . . . . Parts Self-Destructed 189 | . . . . . . . 13 28 . 29 . 17 20 . 82 . . . . . . . . . . . . . Prevented 29 | . . . . . . . 4 1 . 4 . 5 4 . 11 . . . . . . . . . . . . . Parts Restored 1 | . . . . . . . . . . . . . . . . . . . . . . . . . . . . 1 Faulty 1 | . . . . . . . . . . . . . . . . . . . . . . . . . . . . 1 Kills | -11 -10 -10 -9 -9 -8 -7 -7 -7 -7 -6 -6 -6 -6 -6 -5 -5 -5 -5 -5 -5 -4 -4 -4 -3 -3 -2 -2 -2 ------- Run | Yrd Mat Min Mat Sto Mat Fac Low Low Dat Pro Fac Low Low Zio Pro Fac Ext Cet Arc Hub Fac Was Fac Res Tes Res Qua Frg Combat Hostiles Destroyed 523 | . 4 1 28 11 30 15 13 15 . 18 36 13 8 . 35 44 35 4 . 6 15 . 45 12 22 40 11 62 Melee 462 | . . 1 15 6 16 11 12 12 . 17 32 10 8 . 28 42 35 4 . 6 15 . 45 12 22 40 11 62 AOE 4 | . 4 . . . . . . . . . . . . . . . . . . . . . . . . . . . Classes Destroyed 29 | . 7 1 4 . 1 1 1 1 . 1 . . 1 . 3 . 1 . . . . . . . 2 1 1 3 Worker 5 | . 2 . . . . . . . . . 1 . . . . . . . . 1 . . 1 . . . . . Builder 1 | . 1 . . . . . . . . . . . . . . . . . . . . . . . . . . . Tunneler 3 | . . 2 . . . . . . . . . . . . . . . . . . . . 1 . . . . . Hauler 29 | . 1 . 3 . 3 4 . . . . 2 . . . . 8 1 . . 1 . . 1 4 . 1 . . Recycler 6 | . 1 . . . . . . . . . . . . . . 1 4 . . . . . . . . . . . Minesweeper 2 | . . . . . . . . 1 . 1 . . . . . . . . . . . . . . . . . . Operator 12 | . . . 1 . . 1 . . . . 2 . . . . . 2 . . 2 . . . 2 . 1 . 1 Drone 1 | . . . . . . . . . . . . . . . 1 . . . . . . . . . . . . . Watcher 61 | . 2 . 4 1 4 3 . . . . 5 . . . . 5 2 2 . 3 5 . 7 6 2 4 3 3 Swarmer 115 | . 3 . 5 3 10 3 1 5 . 11 7 4 3 . 5 5 4 . . . 1 . 7 5 3 21 . 9 Cutter 13 | . . . . . 5 . . . . . 2 . . . . 4 . . . . . . 2 . . . . . Saboteur 2 | . . . . . . . . . . . . . . . . . . . . . . . . . . 1 . 1 Grunt 168 | . 1 1 13 5 9 7 9 4 . 1 17 3 4 . 17 15 4 . . 4 9 . 23 . 6 4 7 5 Brawler 13 | . . . 1 . . . . 2 . . . 1 . . 2 2 . . . . 1 . . . . 3 . 1 Duelist 13 | . . . 1 . . . 2 1 . 1 . 2 . . 1 . . . . . 1 . . . 1 1 1 1 Protector 2 | . . . . . . . . . . . . . . . 2 . . . . . . . . . . . . . Researcher 6 | . . . . . . . . . . . . . . . . . . . . . . . . . 2 . . 4 Sentry 77 | . . . 8 3 6 4 1 2 . 1 5 1 . . 3 6 9 . . 2 3 . 4 3 3 1 . 12 Demolisher 5 | . . . . . . . . . . . . . . . 5 . . . . . . . . . . . . . Hunter 21 | . . . . . . 1 . 1 . 3 2 2 . . . 1 1 . . . . . 2 2 2 2 . 2 Programmer 46 | . . . . . . . . . . 1 3 . . . . 11 1 . . . . . 7 2 4 7 2 8 Behemoth 1 | . . . . . . . . . . . . . . . . . 1 . . . . . . . . . . . Cetus Guard 4 | . . . . . . . . . . . . . . . . . . 4 . . . . . . . . . . Enhanced Grunt 1 | . . . . . . . . . . . . . . . . . . 1 . . . . . . . . . . Hotshot 1 | . . . . . . . . . . . . . . . . . . . . . . . . . . . . 1 Decapitator 9 | . . . . . . . . . . . . . . . . . . . . . . . . . . . . 9 Striker 1 | . . . . . . . . . . . . . . . . . . . . . . . . . 1 . . . Executioner 4 | . . . . . . . . . . . . . . . . . . . . . . . . . . . . 4 Alpha 7 4 | . . . . . . . . . . . . . . . . . . . . . . . . . . . 1 3 V-Series 6 | . . . . . . . . . . . . . . . . . . . . . . . . . . . . 6 Protovariant L 1 | . . . . . . . . . . . . . . . . . . . . . . . . . 1 . . . Protovariant H 1 | . . . . . . . . . . . . . . . . . . . . . . . . . 1 . . . Decomposer 4 | . . . . . . . 1 2 . 1 . . . . . . . . . . . . . . . . . . Samaritan 3 | . . . . . . . 2 1 . . . . . . . . . . . . . . . . . . . . Tinkerer 1 | . . . . . . . . . . . . . . . . . . . . . . . . . . . . 1 Thug 8 | . . . . . . . . . . . . . . . . . 8 . . . . . . . . . . . Savage 2 | . . . . . . . . . . . . . . . . . 2 . . . . . . . . . . . Butcher 3 | . . . . . . . . . . . . . . . . . 3 . . . . . . . . . . . Guerrilla 2 | . . . . . . . . . . . . . . . . . 2 . . . . . . . . . . . Mutant 1 | . . . . . . . . . . . . . 1 . . . . . . . . . . . . . . . Best Kill Streak 15 | . 7 2 6 4 7 6 4 8 . 6 7 8 7 . 6 11 13 5 . 7 6 . 13 7 5 15 7 10 Combat Bots Only 10 | . 3 1 6 4 7 6 4 8 . 6 4 8 7 . 6 7 10 4 . 2 4 . 9 5 4 9 7 10 Max Kills in Single Turn 3 | . 3 1 1 1 2 1 1 2 . 1 1 1 1 . 2 2 1 1 . 1 1 . 2 1 2 3 1 2 Gunslinging . | . . . . . . . . . . . . . . . . . . . . . . . . . . . . . Exploded 2 | . 2 . . . . . . . . . . . . . . . . . . . . . . . . . . . Melee 3 | . . 1 1 1 2 1 1 2 . 1 1 1 1 . 2 2 1 1 . 1 1 . 2 1 2 3 1 2 Uniques/NPCs Destroyed . | . . . . . . . . . . . . . . . . . . . . . . . . . . . . . Combat | -11 -10 -10 -9 -9 -8 -7 -7 -7 -7 -6 -6 -6 -6 -6 -5 -5 -5 -5 -5 -5 -4 -4 -4 -3 -3 -2 -2 -2 -------- Run | Yrd Mat Min Mat Sto Mat Fac Low Low Dat Pro Fac Low Low Zio Pro Fac Ext Cet Arc Hub Fac Was Fac Res Tes Res Qua Frg Hostile Shots Fired 2149 | . 26 8 151 45 122 70 47 50 17 55 136 37 23 . 88 245 71 9 16 43 65 . 164 40 52 96 35 438 Missed 1155 | . 15 6 61 25 55 31 25 28 8 28 70 15 12 . 43 146 32 7 8 25 33 . 91 30 23 52 17 269 Deflected 3 | . . . . . . . . . . . . . . . . . . . . . . . . . . . . 3 Hits 994 | . 11 2 90 20 67 39 22 22 9 27 66 22 11 . 45 99 39 2 8 18 32 . 73 10 29 44 18 169 Melee 49 | . . . 3 . 7 . 1 . . 3 1 4 . . 2 6 . . . . 5 . 3 . 2 4 1 7 Projectile 945 | . 11 2 87 20 60 39 21 22 9 24 65 18 11 . 43 93 39 2 8 18 27 . 70 10 27 40 17 162 AOE 22 | . . . . . 4 . . . . . 2 . . . 9 1 . . . . . . 5 . . . . 1 Critical Strikes 60 | . . . 1 . 7 . . . . 3 2 1 . . 3 3 6 . . 2 3 . 7 . 1 . 4 17 Actively Blocked 30 | . . . . . . . . . . . . . . . . . . . . . 1 . 7 . 1 . 4 17 Part Disruptions 3 | . . . . . . . . . 1 . . . . . . . . . . . . . . . . 1 . 1 Damage Taken 15750 | . 125 23 1198 216 744 371 266 284 404 536 1021 356 133 . 903 1479 487 27 185 470 495 . 1036 88 537 636 184 3546 Core 12878 | . 105 20 1056 191 608 290 212 225 329 419 816 278 111 . 733 1196 382 21 151 387 395 . 832 67 434 508 146 2966 Absorbed by Shields 5439 | . . . . 70 181 130 . . . . 195 127 49 . 326 563 404 28 112 219 260 . 582 94 316 467 194 1122 Redirected to Core 9816 | . 61 8 495 77 431 251 169 195 289 404 692 264 75 . 610 987 323 21 122 296 341 . 657 67 361 440 118 2062 Ignored by Resistances 296 | . . . . . . . . . . . . . . . . . . . . . . . . . . . . 296 Regen/Repaired (Parts) 29 | . . . . . . . . . . . 3 . . . . . . . . . . . 26 . . . . . Core Remaining (%) 85 | 100 . 100 . 90 96 . . . . 44 . . . . 100 . . . . 63 . . 76 . 100 . . . Volleys Fired 17 | . 10 . . . . . . . . . . 2 . . . . . . . 5 . . . . . . . . Largest 1 | . 1 . . . . . . . . . . 1 . . . . . . . 1 . . . . . . . . Hottest 75 | . 30 . . . . . . . . . . . . . . . . . . 75 . . . . . . . . Shots Fired 17 | . 10 . . . . . . . . . . 2 . . . . . . . 5 . . . . . . . . Gun 5 | . . . . . . . . . . . . . . . . . . . . 5 . . . . . . . . Cannon . | . . . . . . . . . . . . . . . . . . . . . . . . . . . . . Launcher 10 | . 10 . . . . . . . . . . . . . . . . . . . . . . . . . . . Special 2 | . . . . . . . . . . . . 2 . . . . . . . . . . . . . . . . Kinetic . | . . . . . . . . . . . . . . . . . . . . . . . . . . . . . Thermal 5 | . . . . . . . . . . . . . . . . . . . . 5 . . . . . . . . Explosive 10 | . 10 . . . . . . . . . . . . . . . . . . . . . . . . . . . Electromagnetic . | . . . . . . . . . . . . . . . . . . . . . . . . . . . . . Robot Hit Streak 4 | . 4 . . . . . . . . . . . . . . . . . . . . . . . . . . . Robot Miss Streak 2 | . 1 . . . . . . . . . . . . . . . . . . 2 . . . . . . . . Penetration Max . | . . . . . . . . . . . . . . . . . . . . . . . . . . . . . Secondary Targets . | . . . . . . . . . . . . . . . . . . . . . . . . . . . . . Shots Hit Robots 1694 | . 4 7 86 32 84 56 43 37 6 45 102 32 20 . 131 130 121 32 9 31 73 . 128 47 76 98 36 228 Core Hits 673 | . 15 3 20 3 17 18 12 11 1 15 33 11 8 . 51 52 45 14 . 15 30 . 60 24 37 54 19 105 Critical Kills 14 | . . . 3 1 5 1 . . . . 2 . . . 1 1 . . . . . . . . . . . . Critical Parts Destroyed 63 | . . . 15 7 14 2 3 . . 3 7 . 1 . 6 5 . . . . . . . . . . . . Critical Strikes 311 | . . . 20 8 22 14 10 4 . 9 20 2 4 . 21 22 16 5 2 5 9 . 16 2 19 17 5 59 Smash 82 | . . . 18 8 21 3 3 . . 3 9 . 1 . 9 7 . . . . . . . . . . . . Sever 133 | . . . 2 . 1 11 7 4 . 6 11 2 3 . 3 2 13 5 2 5 9 . 16 1 7 2 3 18 Impale 96 | . . . . . . . . . . . . . . . 9 13 3 . . . . . . 1 12 15 2 41 Melee Attacks 2358 | . . 9 111 42 131 93 50 47 6 59 154 40 25 . 166 210 152 40 9 51 97 . 166 64 124 147 64 301 Thermal 7 | . . . . . . . . . . . . . . . . 6 1 . . . . . . . . . . . Impact 531 | . . . 53 42 128 41 20 20 2 22 55 16 12 . 53 61 6 . . . . . . . . . . . Slashing 1146 | . . 9 58 . 3 52 30 27 4 37 99 24 13 . 30 35 115 40 9 51 97 . 166 36 52 41 20 98 Piercing 674 | . . . . . . . . . . . . . . . 83 108 30 . . . . . . 28 72 106 44 203 Sneak Attacks 249 | . . 3 5 2 4 7 8 10 1 10 7 3 . . 16 26 55 3 2 6 5 . 15 15 21 12 3 10 Combat Hostiles 87 | . . 1 1 2 1 1 5 2 . 2 3 . . . 10 8 4 . 2 3 5 . 10 5 8 10 1 3 Follow-up Attacks 587 | . . . 8 6 24 15 13 13 2 11 25 11 8 . 60 59 45 15 3 12 25 . 45 13 36 39 13 86 Martial Strikes 22 | . . . . . . . . . . . . . . . . . . . . . . . . . . . . 22 Damage Inflicted 105273 | . 794 377 3404 1270 3652 3326 2891 2480 416 3145 6488 1972 1186 . 8107 7660 8270 1832 574 2193 4249 . 8093 3065 4875 6239 2639 16076 Guns . | . . . . . . . . . . . . . . . . . . . . . . . . . . . . . Cannons . | . . . . . . . . . . . . . . . . . . . . . . . . . . . . . Explosions 922 | . 794 . . . . . . . . . . . . . . . . . . 128 . . . . . . . . Melee 104351 | . . 377 3404 1270 3652 3326 2891 2480 416 3145 6488 1972 1186 . 8107 7660 8270 1832 574 2065 4249 . 8093 3065 4875 6239 2639 16076 Ramming . | . . . . . . . . . . . . . . . . . . . . . . . . . . . . . Kinetic . | . . . . . . . . . . . . . . . . . . . . . . . . . . . . . Thermal . | . . . . . . . . . . . . . . . . . . . . . . . . . . . . . Explosive 794 | . 794 . . . . . . . . . . . . . . . . . . . . . . . . . . . Electromagnetic 128 | . . . . . . . . . . . . . . . . . . . . 128 . . . . . . . . Impact 16291 | . . . 1593 1270 3618 879 623 574 135 630 1227 458 403 . 2689 1862 330 . . . . . . . . . . . Slashing 53587 | . . 377 1811 . 34 2447 2268 1906 281 2515 5261 1514 783 . 1132 1160 6250 1832 574 2065 4249 . 8093 1325 1729 1081 540 4360 Piercing 34473 | . . . . . . . . . . . . . . . 4286 4638 1690 . . . . . . 1740 3146 5158 2099 11716 Highest Corruption 6 | . . . . . . . . . . 1 1 . . . . 5 5 3 3 6 . . 2 4 4 . . . Average Corruption 2 | . . . . . . . . . . 1 1 . . . . 3 3 3 3 3 . . 1 4 4 . . . Corruption Purged 6 | . . . . . . . . . . . 2 . . . . . 2 . . . . . 2 . . . . . Corruption Blocked 25 | . . . . . . . . . . . . . . . . . . . . . . . . . 1 3 2 19 Effects 64 | . . . . . . . . . . 4 3 . . . . 16 13 1 2 4 . . 4 9 8 . . . Message Errors 12 | . . . . . . . . . . . 1 . . . . 4 1 1 1 . . . 1 1 2 . . . Matter Fused 12 | . . . . . . . . . . . . . . . . 3 3 . . 1 . . 1 1 3 . . . Heat Flow Errors 14 | . . . . . . . . . . 2 . . . . . 4 2 . . . . . 1 4 1 . . . Energy Discharges 12 | . . . . . . . . . . . 1 . . . . 2 3 . . 2 . . 1 2 1 . . . Parts Rejected 1 | . . . . . . . . . . . . . . . . . . . . 1 . . . . . . . . Data Loss (minor) 12 | . . . . . . . . . . 2 1 . . . . 3 3 . 1 . . . . 1 1 . . . Data Loss (major) 1 | . . . . . . . . . . . . . . . . . 1 . . . . . . . . . . . Overload Shots . | . . . . . . . . . . . . . . . . . . . . . . . . . . . . . Overflow Damage 12741 | . 30 44 798 481 815 264 492 533 88 633 1058 158 123 . 1073 1089 1024 32 . 231 351 . 523 173 393 626 349 1360 Projectiles . | . . . . . . . . . . . . . . . . . . . . . . . . . . . . . Explosions 36 | . 30 . . . . . . . . . . . . . . . . . . 6 . . . . . . . . Melee 12705 | . . 44 798 481 815 264 492 533 88 633 1058 158 123 . 1073 1089 1024 32 . 225 351 . 523 173 393 626 349 1360 Knockbacks 55 | . . . 3 2 8 4 3 1 2 2 5 2 2 . 13 8 . . . . . . . . . . . . Impact 49 | . . . 3 2 8 4 3 1 2 2 5 2 2 . 7 8 . . . . . . . . . . . . Kinetic . | . . . . . . . . . . . . . . . . . . . . . . . . . . . . . Secondary 6 | . . . . . . . . . . . . . . . 6 . . . . . . . . . . . . . Self-Inflicted Damage 198 | . . . . . . . . . . . . . . . . . . . . 198 . . . . . . . . Shots 2 | . . . . . . . . . . . . . . . . . . . . 2 . . . . . . . . Rammed . | . . . . . . . . . . . . . . . . . . . . . . . . . . . . . Targets Rammed . | . . . . . . . . . . . . . . . . . . . . . . . . . . . . . Kicked . | . . . . . . . . . . . . . . . . . . . . . . . . . . . . . Crushed . | . . . . . . . . . . . . . . . . . . . . . . . . . . . . . Highest Temperature 402 | . . . . . 14 321 22 12 96 211 285 3 . 1 226 315 243 139 18 321 190 318 402 245 247 149 108 216 Average Temperature 68 | . . . . . 2 58 6 7 49 94 52 3 . 1 89 101 87 55 16 93 70 248 153 43 75 55 58 79 Received Heat Transfer 2184 | . 66 12 324 64 240 66 96 60 . 18 174 30 36 . 180 102 78 8 29 24 101 . 142 4 31 4 4 291 Effects 14 | . . . . . . 1 . . . . 1 . . . . 1 . . . . . 1 10 . . . . . Shutdowns 1 | . . . . . . . . . . . . . . . . . . . . . . . 1 . . . . . Energy Bleed 1 | . . . . . . . . . . . 1 . . . . . . . . . . . . . . . . . Interference 11 | . . . . . . 1 . . . . . . . . . 1 . . . . . 1 8 . . . . . Damage (minor) 1 | . . . . . . . . . . . . . . . . . . . . . . . 1 . . . . . Siege Activations . | . . . . . . . . . . . . . . . . . . . . . . . . . . . . . Martial Activations . | . . . . . . . . . . . . . . . . . . . . . . . . . . . . . Shielding Activations . | . . . . . . . . . . . . . . . . . . . . . . . . . . . . . Robots Disrupted . | . . . . . . . . . . . . . . . . . . . . . . . . . . . . . Combat Hostiles . | . . . . . . . . . . . . . . . . . . . . . . . . . . . . . Robots Corrupted 71 | . . . 13 6 16 5 1 3 . 2 6 3 . . 9 7 . . . . . . . . . . . . Combat Hostiles 55 | . . . 13 5 14 4 1 3 . . 4 3 . . 6 2 . . . . . . . . . . . . Parts Fried 74 | . . . 16 7 13 3 3 4 . 3 8 4 . . 7 4 . 1 . 1 . . . . . . . . Impact Corruptions 178 | . . . 21 22 38 10 7 5 2 10 15 5 1 . 22 18 2 . . . . . . . . . . . Robots Melted . | . . . . . . . . . . . . . . . . . . . . . . . . . . . . . Combat Hostiles . | . . . . . . . . . . . . . . . . . . . . . . . . . . . . . Parts Melted . | . . . . . . . . . . . . . . . . . . . . . . . . . . . . . Heat Transferred . | . . . . . . . . . . . . . . . . . . . . . . . . . . . . . Parts Sabotaged . | . . . . . . . . . . . . . . . . . . . . . . . . . . . . . Parts Stolen . | . . . . . . . . . . . . . . . . . . . . . . . . . . . . . Parts Stripped . | . . . . . . . . . . . . . . . . . . . . . . . . . . . . . Power Chain Reactions . | . . . . . . . . . . . . . . . . . . . . . . . . . . . . . Alert | -11 -10 -10 -9 -9 -8 -7 -7 -7 -7 -6 -6 -6 -6 -6 -5 -5 -5 -5 -5 -5 -4 -4 -4 -3 -3 -2 -2 -2 ------- Run | Yrd Mat Min Mat Sto Mat Fac Low Low Dat Pro Fac Low Low Zio Pro Fac Ext Cet Arc Hub Fac Was Fac Res Tes Res Qua Frg Maximum Alert Level 5 | . 1 . 2 1 2 2 . . . . 3 . . . . 4 4 3 2 3 3 1 4 4 3 5 4 5 Low Security (%) 15 | 100 76 100 44 37 43 1 . . . . 30 . . . . . . . . 10 . . 2 . . . . . Level 1 18 | . 23 . 55 62 35 35 . . . . 20 . . . . 14 . . 37 25 . 100 28 . . . . . Level 2 23 | . . . . . 21 62 . . . . 26 . . . . 25 . . 62 23 88 . 35 37 43 14 . 1 Level 3 25 | . . . . . . . . . . . 22 . . . . 26 58 100 . 40 11 . 30 59 56 34 59 18 Level 4 13 | . . . . . . . . . . . . . . . . 33 41 . . . . . 2 3 . 49 40 35 Level 5 4 | . . . . . . . . . . . . . . . . . . . . . . . . . . 1 . 44 High Security . | . . . . . . . . . . . . . . . . . . . . . . . . . . . . . Max Security . | . . . . . . . . . . . . . . . . . . . . . . . . . . . . . Peak Influence 2643 | . 375 139 407 374 468 522 . . . . 978 . . . . 1476 1377 885 481 1059 763 271 1123 1119 1095 1646 1159 2643 Initial 925 | . . 139 35 116 149 210 . . . . 138 . . . . 239 720 700 332 157 460 271 189 585 488 615 925 651 Average 676 | . 119 96 203 238 260 383 . . . . 436 . . . . 816 1054 800 423 559 578 271 588 783 773 1061 1017 1536 Influence Increases 21300 | . 449 93 975 418 991 907 335 325 . 465 1430 280 175 . 790 1805 1300 300 179 1174 555 . 1462 996 1005 1511 584 2796 Destroy 0b10 Robot/C 11160 | . 80 40 620 220 600 340 260 300 . 360 780 260 140 . 660 880 840 160 80 280 300 . 900 240 480 800 220 1320 Destroy 0b10 Robot/NC 710 | . 35 10 45 15 35 40 . 5 . 10 50 . . . 60 70 45 10 . 40 35 . 50 60 10 30 15 40 Destroy Leader 1806 | . 16 10 184 42 154 94 30 20 . 50 184 20 20 . 40 186 54 . . 60 60 . 186 80 54 120 36 106 Allied During Kill 453 | . . 3 11 . . . . . . . 15 . . . . . 202 115 80 27 . . . . . . . . Successful Hack 1317 | . 43 . 30 19 21 91 . . . . 98 . . . . 116 61 . . 25 114 . 68 144 77 93 163 154 Select Force Hacks 100 | . . . . . . . . . . . . . . . . . . . . 100 . . . . . . . . Disable Machine 750 | . 60 . . 45 . 45 . . . . . . . . . . . . 15 120 . . . . 150 . 30 285 Destroy Structure 619 | . 50 . 10 2 16 32 . . . . 18 . . . . 28 8 . 4 342 16 . 8 2 14 33 30 6 Partial Spotted 885 | . 15 . 30 60 30 90 . . . . 90 . . . . 60 90 . . 60 30 . 15 60 75 120 45 15 Lose Combat Pursuer 3000 | . 150 30 45 15 135 75 45 . . 45 195 . 15 . 30 465 . 15 . 120 . . 135 210 45 315 45 870 Miscellaneous 500 | . . . . . . 100 . . . . . . . . . . . . . . . . 100 200 100 . . . Influence Decreases 18667 | . 90 360 791 340 883 934 392 202 501 244 677 472 240 717 410 715 1518 722 558 684 721 504 616 1244 779 960 1071 1322 Entered New Map 8865 | . . 220 57 160 205 252 162 72 501 . 83 362 150 717 . 141 750 552 498 294 481 504 82 532 381 480 721 508 Time Decay 6322 | . 90 140 374 180 368 362 230 130 . 244 494 110 90 . 410 404 318 130 40 140 230 . 374 262 238 310 180 474 Lost Part 80 | . . . 30 . . . . . . . 10 . . . . . . . . . . . . . . . . 40 Lost Ally 400 | . . . 30 . 10 20 . . . . 90 . . . . 20 . 40 20 100 10 . 10 . 10 20 20 . Purge Threat 3000 | . . . 300 . 300 300 . . . . . . . . . 150 450 . . 150 . . 150 450 150 150 150 300 Squads Dispatched 105 | . 3 . 1 1 6 9 . . . . 12 . . . . 9 2 . . 10 6 . 14 6 5 6 6 9 Investigation 39 | . 1 . . . 1 2 . . . . 6 . . . . 2 2 . . 7 5 . 5 3 2 1 2 . Extermination 23 | . . . . . . 3 . . . . 2 . . . . 3 . . . . 1 . 3 1 2 3 2 3 Reinforcement 26 | . 2 . 1 1 5 2 . . . . 3 . . . . 1 . . . 3 . . 3 2 . . 2 1 Assault 14 | . . . . . . 2 . . . . 1 . . . . 3 . . . . . . . . 1 2 . 5 Garrison 3 | . . . . . . . . . . . . . . . . . . . . . . . 3 . . . . . Intercept . | . . . . . . . . . . . . . . . . . . . . . . . . . . . . . Searches Triggered . | . . . . . . . . . . . . . . . . . . . . . . . . . . . . . Construction Impeded 1 | . . . . . . . . . . . . . . . . . . . . 1 . . . . . . . . Haulers Reinforced 4 | . . . . . . 2 . . . . . . . . . . . . . 1 . . . 1 . . . . Active Scanning Responses . | . . . . . . . . . . . . . . . . . . . . . . . . . . . . . Cargo Convoy Interrupts 2 | . . . . . . . . . . . 1 . . . . 1 . . . . . . . . . . . . Stealth | -11 -10 -10 -9 -9 -8 -7 -7 -7 -7 -6 -6 -6 -6 -6 -5 -5 -5 -5 -5 -5 -4 -4 -4 -3 -3 -2 -2 -2 --------- Run | Yrd Mat Min Mat Sto Mat Fac Low Low Dat Pro Fac Low Low Zio Pro Fac Ext Cet Arc Hub Fac Was Fac Res Tes Res Qua Frg Distress Signals 37 | . 3 . 1 2 . . . . . . . . . . 15 2 1 2 . 1 . . 1 4 . 1 . 4 Communications Jammed 192 | . . . . . . . . . . . 24 . . . 12 80 11 48 . 9 3 . 3 2 . . . . Distress Signals 186 | . . . . . . . . . . . 21 . . . 12 80 11 48 . 8 1 . 3 2 . . . . Times Spotted 840 | . 19 3 41 15 45 24 14 13 4 15 61 11 8 . 34 78 27 12 4 31 20 4 77 32 26 65 18 139 Peak Tracking Total 19 | . 6 2 8 5 8 7 4 3 4 3 8 6 4 . 4 12 5 5 3 15 4 4 13 6 5 9 7 19 Tactical Retreats 91 | . 4 1 2 1 5 4 2 . . 3 8 . 1 . 2 15 . 1 . 2 . . 3 6 2 9 1 19 ECM-based Alert Blocks 1 | . . . . . . . . . . . . . . . . 1 . . . . . . . . . . . . Traps | -11 -10 -10 -9 -9 -8 -7 -7 -7 -7 -6 -6 -6 -6 -6 -5 -5 -5 -5 -5 -5 -4 -4 -4 -3 -3 -2 -2 -2 ------- Run | Yrd Mat Min Mat Sto Mat Fac Low Low Dat Pro Fac Low Low Zio Pro Fac Ext Cet Arc Hub Fac Was Fac Res Tes Res Qua Frg Traps Triggered 26 | . . . . . . . . . . . 2 . . . 2 3 . . . 1 3 . 3 . . . . 12 Indirectly . | . . . . . . . . . . . . . . . . . . . . . . . . . . . . . Trap Hack Attempts . | . . . . . . . . . . . . . . . . . . . . . . . . . . . . . Triggered . | . . . . . . . . . . . . . . . . . . . . . . . . . . . . . Disarmed . | . . . . . . . . . . . . . . . . . . . . . . . . . . . . . Reprogrammed 1 | . . . . . . . . . . . . . . . . . . . . . 1 . . . . . . . Reused . | . . . . . . . . . . . . . . . . . . . . . . . . . . . . . Traps Extracted . | . . . . . . . . . . . . . . . . . . . . . . . . . . . . . Installed . | . . . . . . . . . . . . . . . . . . . . . . . . . . . . . Triggered . | . . . . . . . . . . . . . . . . . . . . . . . . . . . . . Objects Rigged 1 | . . . . . . . . . . . . . . . . . . . . 1 . . . . . . . . Machines | -11 -10 -10 -9 -9 -8 -7 -7 -7 -7 -6 -6 -6 -6 -6 -5 -5 -5 -5 -5 -5 -4 -4 -4 -3 -3 -2 -2 -2 ---------- Run | Yrd Mat Min Mat Sto Mat Fac Low Low Dat Pro Fac Low Low Zio Pro Fac Ext Cet Arc Hub Fac Was Fac Res Tes Res Qua Frg Machines Disabled 56 | . 4 . . 3 . 3 . . . 1 . 1 1 . 2 . . 1 1 8 . . . . 10 . 2 19 Max in Single Turn 5 | . 1 . . 1 . . . . . 1 . 1 1 . 1 . . 1 . 5 . . . . 1 . 1 1 Garrison Access 14 | . . . . . 1 2 . . . . 1 . . . . 3 . . . 1 . . 1 1 . 2 1 1 Network Hub 4 | . . . . . . . . . . . . . . . . . . . . 4 . . . . . . . . Machines Repaired . | . . . . . . . . . . . . . . . . . . . . . . . . . . . . . Machines Dismantled . | . . . . . . . . . . . . . . . . . . . . . . . . . . . . . Machines Sabotaged 2 | . . . . . . . . . . . . . . . . . . . . 2 . . . . . . . . Overloaded Fab Kills . | . . . . . . . . . . . . . . . . . . . . . . . . . . . . . Hacking | -11 -10 -10 -9 -9 -8 -7 -7 -7 -7 -6 -6 -6 -6 -6 -5 -5 -5 -5 -5 -5 -4 -4 -4 -3 -3 -2 -2 -2 --------- Run | Yrd Mat Min Mat Sto Mat Fac Low Low Dat Pro Fac Low Low Zio Pro Fac Ext Cet Arc Hub Fac Was Fac Res Tes Res Qua Frg Machines Accessed 231 | . 5 . 10 10 8 24 . . 4 . 25 . 2 . . 17 15 2 1 14 16 . 14 13 12 12 15 12 Terminals 170 | . 5 . 9 10 5 17 . . . . 14 . . . . 11 15 2 . 13 10 . 7 9 12 8 13 10 Fabricators 15 | . . . . . . 2 . . . . 6 . . . . 1 . . . . 3 . 2 1 . . . . Repair Stations 3 | . . . . . . . . . . . 1 . . . . . . . . . . . 1 . . 1 . . Recycling Units 2 | . . . . . 1 . . . . . 1 . . . . . . . . . . . . . . . . . Scanalyzers 16 | . . . 1 . 1 2 . . . . 1 . . . . 2 . . . . 2 . 2 2 . 1 1 1 Garrison Access 18 | . . . . . 1 3 . . . . 2 . . . . 3 . . . 1 1 . 2 1 . 2 1 1 Total Hacks 1145 | . 42 . 67 49 59 87 . . 29 . 78 . 7 . . 45 63 10 25 60 110 . 68 73 63 60 72 78 Successful 682 | . 22 . 45 37 43 49 . . 29 . 43 . 7 . . 28 36 5 25 38 58 . 42 33 33 32 39 38 Failed 458 | . 20 . 21 12 15 37 . . . . 34 . . . . 17 27 5 . 22 52 . 26 40 30 27 33 40 Catastrophic 54 | . 2 . . . 1 2 . . . . 2 . . . . 6 2 . . 3 8 . 2 10 3 7 3 3 Database Lockouts 5 | . . . 1 . 1 1 . . . . 1 . . . . . . . . . . . . . . 1 . . Manual 611 | . 26 . 42 35 44 38 . . . . 37 1 . 4 . 20 42 3 1 44 63 . 38 24 34 38 37 40 Terminals 941 | . 42 . 64 49 48 65 . . . . 54 . . . . 34 63 10 . 59 81 . 54 58 63 55 69 73 Fabricators 47 | . . . . . . 11 . . . . 10 . . . . 2 . . . . 13 . 5 6 . . . . Repair Stations 5 | . . . . . . . . . . . 2 . . . . . . . . . . . 2 . . 1 . . Recycling Units 5 | . . . . . 2 . . . . . 3 . . . . . . . . . . . . . . . . . Scanalyzers 45 | . . . 3 . 5 5 . . . . 3 . . . . 6 . . . . 6 . 4 7 . 1 1 4 Garrison Access 41 | . . . . . 4 6 . . . . 6 . . . . 3 . . . 1 10 . 3 2 . 3 2 1 Terminal Hacks 335 | . 15 . 24 21 18 24 . . 29 . 9 . 7 . . 5 21 5 25 11 21 . 16 15 17 14 22 16 Record 56 | . . . . . . 1 . . 11 . . . 6 . . . . 4 25 . . . . . . 2 1 6 Part Schematic 21 | . . . . . . 3 . . 11 . 1 . . . . . 1 . . . 1 . . 1 1 . 2 . Robot Schematic 8 | . . . . . . . . . 4 . . . . . . . . . . . 1 . 2 . . . . 1 Robot Analysis 13 | . 1 . 2 . . 2 . . . . 1 . . . . . 3 . . . . . . 1 1 2 . . Prototype ID Bank 34 | . 7 . 2 5 3 1 . . 3 . 1 . . . . 1 2 . . 1 3 . 1 . 1 1 2 . Open Door 13 | . . . . 3 . . . . . . . . 1 . . . 5 1 . . . . . . 1 . 2 . Level Access Points 7 | . 1 . 1 1 1 . . . . . . . . . . . . . . . 1 . . . . . 1 1 Branch Access Points 16 | . 1 . 1 2 3 . . . . . 1 . . . . . . . . 1 1 . 1 1 1 1 1 1 Emergency Access Points 6 | . . . 2 1 . . . . . . . . . . . . . . . 1 . . . . . . 1 1 Machine Index 2 | . 1 . . . . . . . . . . . . . . . . . . . . . . . . 1 . . Terminal Index 8 | . . . 1 1 . 1 . . . . . . . . . . 1 . . . . . 1 1 1 . 1 . Fabricator Index 3 | . . . . . . . . . . . 1 . . . . . . . . . . . 1 1 . . . . Garrison Index 2 | . . . . . . . . . . . . . . . . . . . . . 1 . 1 . . . . . Alert Level 20 | . . . 4 2 3 2 . . . . 1 . . . . 1 2 . . . 2 . 1 2 . . . . Unreport Threat 24 | . . . 2 . 2 3 . . . . . . . . . . 3 . . 1 . . 2 5 2 1 1 2 Locate Traps 5 | . 1 . 2 . . . . . . . . . . . . . . . . 1 . . . . . . . 1 Reprogram Traps 1 | . . . . . . . . . . . . . . . . . . . . . 1 . . . . . . . Security Status 1 | . . . . . . . . . . . . . . . . . . . . . 1 . . . . . . . Surveillance Status 1 | . . . . . 1 . . . . . . . . . . . . . . . . . . . . . . . Investigation Status 5 | . . . . . . 1 . . . . . . . . . . 1 . . . 2 . 1 . . . . . Extermination Status 7 | . . . . . . 3 . . . . . . . . . . 1 . . . . . . . 1 1 1 . Reinforcement Status 5 | . . . . . . 2 . . . . . . . . . . . . . . 1 . . . . 1 1 . Assault Status 4 | . . . . . 1 . . . . . 1 . . . . . 1 . . . . . . . 1 . . . Recall Investigation 7 | . 1 . . 1 . . . . . . . . . . . . . . . 1 4 . . . . . . . Recall Extermination 9 | . . . . . . 2 . . . . . . . . . 1 . . . 1 . . 1 . 2 1 1 . Recall Reinforcements 7 | . . . . 1 1 1 . . . . . . . . . 1 . . . . . . . . . . 3 . Recall Assault 1 | . . . . . . . . . . . . . . . . . . . . . . . . . 1 . . . Hauler Manifests 13 | . . . 1 1 1 1 . . . . 1 . . . . . . . . 1 1 . 2 1 . 1 2 . Registered Components 13 | . . . 1 1 . 1 . . . . 1 . . . . 1 . . . 1 1 . 1 1 1 1 1 1 Registered Prototypes 8 | . . . 1 . . . . . . . . . . . . . 1 . . 1 . . 1 1 1 1 . 1 Zone Layout 12 | . 2 . 4 2 2 . . . . . . . . . . . . . . 1 . . . . . . 1 . Proto ID Catalog 1 | . . . . . . . . . . . . . . . . . . . . . . . . . . . . 1 Protovariant Controls 2 | . . . . . . . . . . . . . . . . . . . . . . . . . 2 . . . Fabricator Hacks 25 | . . . . . . 5 . . . . 8 . . . . 1 . . . . 5 . 4 2 . . . . Network Status 2 | . . . . . . . . . . . . . . . . 1 . . . . 1 . . . . . . . Load Schematic 12 | . . . . . . 3 . . . . 4 . . . . . . . . . 2 . 2 1 . . . . Build 11 | . . . . . . 2 . . . . 4 . . . . . . . . . 2 . 2 1 . . . . Repair Station Hacks 4 | . . . . . . . . . . . 2 . . . . . . . . . . . 2 . . . . . Scan Component 2 | . . . . . . . . . . . 1 . . . . . . . . . . . 1 . . . . . Repair 2 | . . . . . . . . . . . 1 . . . . . . . . . . . 1 . . . . . Recycling Unit Hacks 3 | . . . . . 2 . . . . . 1 . . . . . . . . . . . . . . . . . Report Inventory 2 | . . . . . 1 . . . . . 1 . . . . . . . . . . . . . . . . . Retrieve Components 1 | . . . . . 1 . . . . . . . . . . . . . . . . . . . . . . . Scanalyzer 33 | . . . 3 . 5 3 . . . . 2 . . . . 4 . . . . 5 . 3 4 . . 1 3 Insert Component 10 | . . . . . 1 1 . . . . . . . . . 2 . . . . 2 . 2 1 . . . 1 Analyze 11 | . . . . . 2 1 . . . . . . . . . 1 . . . . 2 . 1 2 . . . 2 Retrieve Study 12 | . . . 3 . 2 1 . . . . 2 . . . . 1 . . . . 1 . . 1 . . 1 . Garrison Access Hacks 14 | . . . . . 1 2 . . . . 1 . . . . 3 . . . 1 . . 1 1 . 2 1 1 Seal Access 14 | . . . . . 1 2 . . . . 1 . . . . 3 . . . 1 . . 1 1 . 2 1 1 Unauthorized Hacks 268 | . 7 . 18 16 17 15 . . . . 20 . . . . 15 15 . . 26 27 . 16 11 16 16 15 18 Terminals 248 | . 7 . 18 16 14 11 . . . . 19 . . . . 14 15 . . 26 20 . 13 11 16 15 15 18 Track 51 | . 1 . 5 6 2 2 . . . . 5 . . . . 2 2 . . 3 6 . 3 . 5 2 2 5 Assimilate 17 | . . . 1 . 1 . . . . . 4 . . . . 2 1 . . . 1 . 1 1 1 2 2 . Botnet 65 | . 2 . 3 3 3 3 . . . . 4 . . . . 3 7 . . 6 6 . 3 4 3 5 6 4 Detonate 1 | . . . . . . . . . . . . . . . . . . . . 1 . . . . . . . . Disrupt 9 | . 1 . 1 1 1 . . . . . . . . . . . . . . 2 . . . . . . . 3 Operators 12 | . 1 . 2 1 2 1 . . . . 1 . . . . . . . . . 1 . . . 1 1 . 1 Skim 86 | . 1 . 6 5 5 5 . . . . 5 . . . . 7 5 . . 8 6 . 6 6 6 5 5 5 Sabotage 6 | . . . . . . . . . . . . . . . . . . . . 6 . . . . . . . . Search 1 | . 1 . . . . . . . . . . . . . . . . . . . . . . . . . . . Fabricators 5 | . . . . . . 1 . . . . . . . . . 1 . . . . 2 . 1 . . . . . Prioritize 4 | . . . . . . 1 . . . . . . . . . . . . . . 2 . 1 . . . . . Haulers 1 | . . . . . . . . . . . . . . . . 1 . . . . . . . . . . . . Repair Stations 1 | . . . . . . . . . . . . . . . . . . . . . . . . . . 1 . . Mechanics 1 | . . . . . . . . . . . . . . . . . . . . . . . . . . 1 . . Recycling Units . | . . . . . . . . . . . . . . . . . . . . . . . . . . . . . Scanalyzers . | . . . . . . . . . . . . . . . . . . . . . . . . . . . . . Garrison Access 14 | . . . . . 3 3 . . . . 1 . . . . . . . . . 5 . 2 . . . . . Broadcast 3 | . . . . . 1 1 . . . . . . . . . . . . . . . . 1 . . . . . Decoy 1 | . . . . . . . . . . . . . . . . . . . . . 1 . . . . . . . Redirect 1 | . . . . . . . . . . . . . . . . . . . . . 1 . . . . . . . Reprogram 4 | . . . . . 1 1 . . . . 1 . . . . . . . . . 1 . . . . . . . Intercept 1 | . . . . . . . . . . . . . . . . . . . . . 1 . . . . . . . Watchers 4 | . . . . . 1 1 . . . . . . . . . . . . . . 1 . 1 . . . . . Data Cores Recovered 10 | . . . . . . 1 . . . . 2 . . . . . 2 . . 1 . . . 2 . 1 . 1 Used 1 | . . . . . . . . . . . . . . . . . . . . . . . . 1 . . . . Hacking Detections 161 | . 5 . 9 9 5 19 . . . . 23 . . . . 11 10 . . 7 13 . 7 11 8 7 11 6 Full Trace Events 12 | . 1 . . . . 1 . . . . 4 . . . . 1 . . . . 2 . 2 1 . . . . Feedback Events 1 | . . . . . . . . . . . . . . . . 1 . . . . . . . . . . . . Corruption 1 | . . . . . . . . . . . . . . . . 1 . . . . . . . . . . . . Feedback Blocked . | . . . . . . . . . . . . . . . . . . . . . . . . . . . . . Robot Schematics Acquired 15 | . . . . . . . . . 4 . . . . . . . . . . . 1 . 2 . 4 . . 4 Robots Built . | . . . . . . . . . . . . . . . . . . . . . . . . . . . . . Authchips . | . . . . . . . . . . . . . . . . . . . . . . . . . . . . . Time . | . . . . . . . . . . . . . . . . . . . . . . . . . . . . . Total Robot Build Rating . | . . . . . . . . . . . . . . . . . . . . . . . . . . . . . Part Schematics Acquired 43 | . . . . . 1 4 . . 11 . . . . . . 1 1 . . . 1 . 1 2 7 . 2 12 Parts Built 12 | . . . . . . 2 . . . . 4 . . . . . . . . . 1 . 3 2 . . . . Authchips 1 | . . . . . . 1 . . . . . . . . . . . . . . . . . . . . . . Time 679 | . . . . . . 100 . . . . 268 . . . . . . . . . 110 . 132 69 . . . . Total Part Build Rating 74 | . . . . . . 8 . . . . 16 . . . . . . . . . 9 . 23 18 . . . . Part Studies Acquired 12 | . . . 3 . 2 1 . . . . 2 . . . . 1 . . . . 1 . . 1 . . 1 . Parts Repaired 2 | . . . . . . . . . . . 1 . . . . . . . . . . . 1 . . . . . Time 72 | . . . . . . . . . . . 29 . . . . . . . . . . . 43 . . . . . Parts Recycled . | . . . . . . . . . . . . . . . . . . . . . . . . . . . . . Recycled Matter . | . . . . . . . . . . . . . . . . . . . . . . . . . . . . . Retrieved Matter . | . . . . . . . . . . . . . . . . . . . . . . . . . . . . . Retrieved Components 10 | . . . . . 10 . . . . . . . . . . . . . . . . . . . . . . . Parts Scanalyzed 9 | . . . . . 1 1 . . . . . . . . . 2 . . . . 2 . 1 1 . . . 1 Part Schematics Acquired 7 | . . . . . 1 1 . . . . . . . . . 1 . . . . 1 . 1 1 . . . 1 Parts Damaged 1 | . . . . . . . . . . . . . . . . 1 . . . . . . . . . . . . Bothacking | -11 -10 -10 -9 -9 -8 -7 -7 -7 -7 -6 -6 -6 -6 -6 -5 -5 -5 -5 -5 -5 -4 -4 -4 -3 -3 -2 -2 -2 ------------ Run | Yrd Mat Min Mat Sto Mat Fac Low Low Dat Pro Fac Low Low Zio Pro Fac Ext Cet Arc Hub Fac Was Fac Res Tes Res Qua Frg Used RIF Installer . | . . . . . . . . . . . . . . . . . . . . . . . . . . . . . Robots Hacked . | . . . . . . . . . . . . . . . . . . . . . . . . . . . . . Non-combat . | . . . . . . . . . . . . . . . . . . . . . . . . . . . . . Combat . | . . . . . . . . . . . . . . . . . . . . . . . . . . . . . Robot Hacks Applied . | . . . . . . . . . . . . . . . . . . . . . . . . . . . . . Relay Couplers Released 1 | . . . . . . . . . . . . . . . . . . . . . . . . . . 1 . . Programmers 1 | . . . . . . . . . . . . . . . . . . . . . . . . . . 1 . . Fabnet Peak Effective % . | . . . . . . . . . . . . . . . . . . . . . . . . . . . . . Robots Rewired . | . . . . . . . . . . . . . . . . . . . . . . . . . . . . . Allies Hacked . | . . . . . . . . . . . . . . . . . . . . . . . . . . . . . Hacks Repelled . | . . . . . . . . . . . . . . . . . . . . . . . . . . . . . Allies | -11 -10 -10 -9 -9 -8 -7 -7 -7 -7 -6 -6 -6 -6 -6 -5 -5 -5 -5 -5 -5 -4 -4 -4 -3 -3 -2 -2 -2 -------- Run | Yrd Mat Min Mat Sto Mat Fac Low Low Dat Pro Fac Low Low Zio Pro Fac Ext Cet Arc Hub Fac Was Fac Res Tes Res Qua Frg Total Allies 29 | . . 1 1 . 1 1 . . . . 6 . . . . 1 6 5 . . 1 . 1 . 1 2 2 . Largest Group 8 | . . 1 1 . 1 1 . . . . 4 . . . . 1 6 8 7 5 1 . 1 . 1 2 2 . Highest-Rated Group 681 | . . 31 31 . 10 21 . . . . 97 . . . . 26 289 681 599 410 26 . 26 . 10 52 55 . Highest-Rated Ally 159 | . . 31 31 . 10 21 . . . . 29 . . . . 26 159 156 156 96 26 . 26 . 10 26 45 . Total Orders 7 | . . . . . . . . . . . . . . . 4 1 1 . . . 1 . . . . . . . STAY 2 | . . . . . . . . . . . . . . . . . 1 . . . 1 . . . . . . . FOLLOW 1 | . . . . . . . . . . . . . . . 1 . . . . . . . . . . . . . RETURN 4 | . . . . . . . . . . . . . . . 3 1 . . . . . . . . . . . . Ally Attacks 173 | . . 5 9 . . 5 . . . . 17 . . . . . 30 43 34 30 . . . . . . . . Total Damage 5831 | . . 85 171 . . 233 . . . . 251 . . . . . 1021 1232 1186 1652 . . . . . . . . Kills 34 | . . 1 4 . . 2 . . . . 3 . . . . . 7 4 4 9 . . . . . . . . Allies Corrupted 1 | . . . . . . . . . . . 1 . . . . . . . . . . . . . . . . . Allies Melted 3 | . . . . . . . . . . . . . . . . . . . . 2 1 . . . . . . . Intel | -11 -10 -10 -9 -9 -8 -7 -7 -7 -7 -6 -6 -6 -6 -6 -5 -5 -5 -5 -5 -5 -4 -4 -4 -3 -3 -2 -2 -2 ------- Run | Yrd Mat Min Mat Sto Mat Fac Low Low Dat Pro Fac Low Low Zio Pro Fac Ext Cet Arc Hub Fac Was Fac Res Tes Res Qua Frg Active Infowar (turns) 14196 | . . . 863 363 844 811 490 269 31 559 1318 232 185 240 989 979 701 270 80 280 487 13 866 578 515 689 378 1166 Optics 1387 | . . . 863 363 159 . . . . . . . . . . 2 . . . . . . . . . . . . Terrain 12105 | . . . . . 759 811 490 269 31 559 1318 232 185 240 989 965 701 270 80 280 487 13 852 578 510 689 378 419 Traps 725 | . . . 239 363 123 . . . . . . . . . . . . . . . . . . . . . . . Cloaking 4294 | . . . . . . . . . . . 614 . . . . . . . . . . . 445 574 491 689 374 1107 Jamming 8336 | . . . . . . 110 490 269 31 559 1318 232 185 240 989 976 701 270 80 280 487 10 314 460 335 . . . ECM 2 | . . . . . . . . . . . . . . . . 2 . . . . . . . . . . . . Robot Analysis Total 10 | . 1 . 2 . . 2 . . . . 1 . . . . . 2 . . . . . . 1 . 1 . . Derelict Logs Recovered 8 | . . 1 . . . . 2 1 . 1 . . 2 1 . . . . . . . . . . . . . . Drone Launches 6 | . . . . . . . . . . . . . . . 5 1 . . . . . . . . . . . . Drone Recoveries 5 | . . . . . . . . . . . . . . . 5 . . . . . . . . . . . . . Exploration | -11 -10 -10 -9 -9 -8 -7 -7 -7 -7 -6 -6 -6 -6 -6 -5 -5 -5 -5 -5 -5 -4 -4 -4 -3 -3 -2 -2 -2 ------------- Run | Yrd Mat Min Mat Sto Mat Fac Low Low Dat Pro Fac Low Low Zio Pro Fac Ext Cet Arc Hub Fac Was Fac Res Tes Res Qua Frg Turns Passed 14839 | 10 259 290 868 363 844 839 490 269 31 559 1318 232 185 240 989 979 701 270 80 280 487 13 866 578 515 689 378 1217 Spaces Moved 29860 | 20 551 561 1194 533 1208 1958 1018 498 97 1128 2296 488 543 931 1086 1848 1017 482 162 765 1172 76 1993 1532 1065 1828 1075 2735 Core 112 | 20 86 . . . . . . . . . . . . . . . . . . . . . . . 6 . . . Treads . | . . . . . . . . . . . . . . . . . . . . . . . . . . . . . Legs . | . . . . . . . . . . . . . . . . . . . . . . . . . . . . . Wheels . | . . . . . . . . . . . . . . . . . . . . . . . . . . . . . Hover . | . . . . . . . . . . . . . . . . . . . . . . . . . . . . . Flight 29748 | . 465 561 1194 533 1208 1958 1018 498 97 1128 2296 488 543 931 1086 1848 1017 482 162 765 1172 76 1993 1532 1059 1828 1075 2735 Fastest Speed 5 | 50 40 40 37 30 26 20 20 17 17 23 11 11 20 20 5 5 6 6 6 6 5 5 5 5 5 5 5 5 Average Speed 21 | 50 41 40 37 37 27 24 22 22 21 23 21 19 20 20 19 19 21 20 21 20 18 13 18 17 17 16 16 16 Slowest Speed 150 | 50 50 40 120 40 30 26 23 23 23 26 86 20 20 20 20 23 22 22 22 22 22 18 75 76 150 17 17 81 Overloaded Moves 1222 | . . . . . . 3 . 11 31 . 83 4 . . 66 154 34 32 5 91 44 24 122 32 43 27 53 363 Propulsion Burnouts 2 | . . . . . . . . . . . . . . . . . . . . . . . . . . . . 2 Robots Hopped 163 | . 6 2 6 5 4 15 1 . . . 20 2 . . . 16 11 . . 11 8 . 7 7 18 12 6 6 Potential Cave-ins 5 | . . . 2 . 3 . . . . . . . . . . . . . . . . . . . . . . . Cave-ins Triggered . | . . . . . . . . . . . . . . . . . . . . . . . . . . . . . Teleports 1 | . . . . . . . . . . . . . . . . . . . . . . . . . . . . 1 Exploration Rate (%) 71 | 2 89 94 87 83 81 58 92 67 76 97 59 55 58 83 82 58 78 91 88 89 32 73 50 56 92 44 91 77 Regions Visited 28 Branch Regions 17 Pre-discovered Areas 18 | . . . . . 2 1 . 1 1 . 3 . 1 3 . 1 . . . . 1 . . 1 1 1 . 1 Known Exits Taken 18 | . 1 1 1 1 1 1 1 . . 1 1 . . . 1 1 1 . . 1 . . 1 1 1 1 1 . Unknown Exits Taken 8 | 1 . . . . . . . 1 1 . . 1 1 1 . . . 1 1 . . . . . . . . . Scrap Searched 12 | . . 1 . . . . 1 1 . 4 . 1 1 1 2 . . . . . . . . . . . . . Spaces Dug 146 | . . . 14 2 22 17 . . . . 18 . . . 2 14 4 . . 7 8 . 4 1 9 11 11 2 Terrain Destroyed 529 | . 60 . 14 2 22 17 . . . . 18 . . . 2 14 4 . . 330 8 . 4 1 9 11 11 2 Melee 146 | . . . 14 2 22 17 . . . . 18 . . . 2 14 4 . . 7 8 . 4 1 9 11 11 2 Projectile . | . . . . . . . . . . . . . . . . . . . . . . . . . . . . . AOE 383 | . 60 . . . . . . . . . . . . . . . . . . 323 . . . . . . . . Terrain Rammed . | . . . . . . . . . . . . . . . . . . . . . . . . . . . . . Walls Destroyed . | . . . . . . . . . . . . . . . . . . . . . . . . . . . . . Machines Disabled . | . . . . . . . . . . . . . . . . . . . . . . . . . . . . . Actions | -11 -10 -10 -9 -9 -8 -7 -7 -7 -7 -6 -6 -6 -6 -6 -5 -5 -5 -5 -5 -5 -4 -4 -4 -3 -3 -2 -2 -2 --------- Run | Yrd Mat Min Mat Sto Mat Fac Low Low Dat Pro Fac Low Low Zio Pro Fac Ext Cet Arc Hub Fac Was Fac Res Tes Res Qua Frg Total 35947 | 19 562 614 1457 617 1518 2189 1231 608 100 1366 2949 577 597 983 1722 2252 1371 625 199 842 1365 77 2371 1784 1283 2088 1222 3359 Wait 3425 | . 5 37 113 31 152 152 165 66 . 176 455 41 26 43 482 193 220 119 25 27 86 . 164 158 96 146 90 157 Move 29521 | 19 538 556 1182 522 1199 1929 1015 497 96 1127 2256 484 542 930 1085 1818 995 481 161 743 1158 75 1977 1519 1028 1804 1062 2723 Hop 144 | . 6 2 5 5 4 13 1 . . . 18 1 . . . 13 10 . . 10 6 . 6 4 18 11 6 5 Pick Up 35 | . . . . 1 . 2 1 . . 2 6 . 1 1 4 2 3 . . . 1 1 . 1 1 . . 8 Fast Attach 160 | . 3 1 8 3 12 6 . . . 2 12 2 . 4 . 10 5 . . 1 5 1 17 10 12 4 5 37 Attach 15 | . . . . . 1 3 . . . 1 3 . 1 . 1 2 1 . . . 2 . . . . . . . Detach 14 | . . . . . 1 1 . . . . 1 . . . . 2 . . . . 2 . 3 2 2 . . . Swap 128 | . . . 1 1 6 9 . . . . 10 . . 1 . 13 7 . . 1 4 . 16 11 12 4 5 27 Drop 185 | . . 1 3 1 11 7 . . . 1 19 2 1 4 3 17 6 . . 1 4 . 19 11 15 4 5 50 Fire 17 | . 10 . . . . . . . . . . 2 . . . . . . . 5 . . . . . . . . Melee 1363 | . . 9 101 34 93 58 30 27 4 38 99 24 13 . 83 110 83 20 6 26 57 . 90 35 62 76 36 149 Ram . | . . . . . . . . . . . . . . . . . . . . . . . . . . . . . Kick . | . . . . . . . . . . . . . . . . . . . . . . . . . . . . . Crush . | . . . . . . . . . . . . . . . . . . . . . . . . . . . . . Escape Stasis 155 | . . . . . . . . . . . 1 . . . 17 . . . . 13 . . 15 17 . . . 92 Rewire . | . . . . . . . . . . . . . . . . . . . . . . . . . . . . . Trap . | . . . . . . . . . . . . . . . . . . . . . . . . . . . . . Miscellaneous 785 | . . 8 44 19 39 9 19 18 . 19 69 21 13 . 47 72 41 5 7 15 40 . 64 16 37 39 13 111 Route ------- -11/Scrapyard -10/Materials (discovered 5 exits: *Mat x3 / *Min x2) -10/Mines (discovered 2 exits: *Mat x2) -9/Materials (discovered 7 exits: *Mat x3 / *Min x2 / *Sto x2) -9/Storage (discovered 2 exits: *Mat / Rec) -8/Materials (discovered 3 exits: *Fac x3) -7/Factory (discovered 6 exits: *Fac x4 / *Low x2) -7/Lower Caves -7/Lower Caves -7/Data Miner -6/Proximity Caves -6/Factory (discovered 6 exits: *Fac x4 / *Low x2) -6/Lower Caves -6/Lower Caves (discovered 2 exits: *Fac / *Zio) -6/Zion (discovered 2 exits: [*Dee] / [*Pro]) -5/Proximity Caves -5/Factory (discovered 6 exits: *Fac x3 / Upp x2 / *Ext) -5/Extension (discovered 3 exits: *Fac x2 / *Cet) -5/Cetus (discovered 3 exits: *Fac x2 / *Arc) -5/Archives (discovered 3 exits: Fac / *Hub x2) -5/Hub_04(d) (discovered 4 exits: *Fac x4) -4/Factory (discovered 7 exits: *Res x4 / *Upp x2 / Arm) -4/Waste -4/Factory (discovered 6 exits: *Res x4 / *Upp x2) -3/Research (discovered 5 exits: Res x3 / *Tes x2) -3/Testing -2/Research (discovered 5 exits: *Acc x3 / *Qua x2) -2/Quarantine (discovered 3 exits: *Acc / *Sec / *Frg) -2/Protoforge (discovered 1 exit: Acc) History --------- Turn | Location | Event 5 | -11/Scrapyard | Discovered new exit (range 13) 11 | -11/Scrapyard | Entered Materials 53 | -10/Materials | Discovered new exit (range 12) 91 | -10/Materials | Identified exit to Mines 94 | -10/Materials | Discovered new exit (range 10) 98 | -10/Materials | Identified exit to Materials 270 | -10/Materials | Entered Mines 279 | -10/Mines | A weapon hastily lodged in a ceiling crevice suddenly fell to the ground 289 | -10/Mines | Learned Materials non-interactive machine intel 301 | -10/Mines | Build established: Hacker-Mutant 374 | -10/Mines | YI-UF0 nonchalantly dropped a Grenade Launcher on the ground 448 | -10/Mines | Discovered exit to Materials (range 14) 456 | -10/Mines | Discovered exit to Materials (range 5) 457 | -10/Mines | Received a Mining Laser from a helpful Derelict 462 | -10/Mines | Joined a pair of Derelicts in attacking an 0b10 outpost 480 | -10/Mines | Reached level 2 482 | -10/Mines | Upgraded with Propulsion slot (x1) 482 | -10/Mines | Upgraded with Utility slot (x2) 560 | -10/Mines | Entered Materials 560 | -9/Materials | Accompanied by 1 ally 561 | -9/Materials | Loaded intel: 44 non-interactive machine locations 562 | -9/Materials | Reached level 3 602 | -9/Materials | Discovered new exit (range 14) 671 | -9/Materials | Discovered new exit (range 5) 739 | -9/Materials | Discovered new exit (range 12) 829 | -9/Materials | Reached level 4 888 | -9/Materials | Discovered new exit (range 18) 941 | -9/Materials | Upgraded with Utility slot (x1) 941 | -9/Materials | Upgraded with Weapon slot (x1) 1068 | -9/Materials | Core integrity fell below 50% 1108 | -9/Materials | Identified exit to Mines 1108 | -9/Materials | Identified exit to Storage 1151 | -9/Materials | Reached level 5 1172 | -9/Materials | Discovered new exit (range 7) 1248 | -9/Materials | Build established: Hacker-Gladiator 1360 | -9/Materials | Loaded intel: 25 trap records 1360 | -9/Materials | Central database locked down 1360 | -9/Materials | Identified exit to Materials 1401 | -9/Materials | Learned Storage emergency access door positions 1428 | -9/Materials | Entered Storage 1430 | -9/Storage | Reached level 6 1463 | -9/Storage | Identified exit to Recycling 1504 | -9/Storage | Watched by a mysterious "MATRIX" hacker. 1568 | -9/Storage | Reached level 7 1766 | -9/Storage | Upgraded with Propulsion slot (x1) 1791 | -9/Storage | Entered Materials 1793 | -8/Materials | Reached level 8 1835 | -8/Materials | Identified exit to Factory 1876 | -8/Materials | Upgraded with Propulsion slot (x1) 1876 | -8/Materials | Upgraded with Utility slot (x1) 2126 | -8/Materials | Reached level 9 2241 | -8/Materials | Build established: Hacker-Sprinter 2247 | -8/Materials | Upgraded with Weapon slot (x1) 2286 | -8/Materials | Central database locked down 2427 | -8/Materials | Reached level 10 2498 | -8/Materials | Learned Factory trap positions 2527 | -8/Materials | Learned 4 Lower Caves zone layouts 2570 | -8/Materials | Reached level 11 2591 | -8/Materials | Destroyed 7 combat bots 2635 | -8/Materials | Entered Factory 2636 | -7/Factory | Identified exit to Factory 2636 | -7/Factory | Identified exit to Lower Caves 2637 | -7/Factory | Loaded intel: 86 trap records 2637 | -7/Factory | Reached level 12 2737 | -7/Factory | Upgraded with Weapon slot (x1) 2789 | -7/Factory | Upgraded with Propulsion slot (x1) 2865 | -7/Factory | Discovered exit to Factory (range 15) 2930 | -7/Factory | Discovered exit to Lower Caves (range 14) 2994 | -7/Factory | Reached level 13 3025 | -7/Factory | Discovered exit to Factory (range 11) 3035 | -7/Factory | First assault squad dispatched 3042 | -7/Factory | Upgraded with Power slot (x1) 3045 | -7/Factory | Central database locked down 3077 | -7/Factory | Targeted by mysterious "MATRIX" hacker. 3087 | -7/Factory | Upgraded with Utility slot (x1) 3111 | -7/Factory | Learned Extension stockpile data 3141 | -7/Factory | Learned 2 Hub_04(d) zone layouts 3142 | -7/Factory | Learned location of 1 exit from Hub_04(d) 3143 | -7/Factory | Learned location of 1 exit from Extension 3144 | -7/Factory | Learned location of 1 exit from Lower Caves 3145 | -7/Factory | Learned location of 1 exit from Extension 3146 | -7/Factory | Learned Extension trap positions 3154 | -7/Factory | Learned 4 Extension zone layouts 3171 | -7/Factory | Learned location of Extension (-5) 3379 | -7/Factory | Reached level 14 3411 | -7/Factory | Fabricated Cld. VTOL Module (x1) 3456 | -7/Factory | Fabricated Cld. VTOL Module (x1) 3458 | -7/Factory | Upgraded with Propulsion slot (x1) 3474 | -7/Factory | Entered Lower Caves 3475 | -7/Lower Caves | Identified exit to Lower Caves 3514 | -7/Lower Caves | Entered a destroyed Warlord outpost 3548 | -7/Lower Caves | Attracted the attention of an 0b10 checkpoint 3579 | -7/Lower Caves | Learned Factory terminal intel 3587 | -7/Lower Caves | Encountered a Warlord checkpoint 3754 | -7/Lower Caves | Learned location of 1 exit from Factory 3964 | -7/Lower Caves | Entered another Lower Caves area 3966 | -7/Lower Caves | Reached level 15 4004 | -7/Lower Caves | Destroyed 8 combat bots 4021 | -7/Lower Caves | Learned location of Zion (-6) 4048 | -7/Lower Caves | Attracted the attention of an 0b10 outpost 4097 | -7/Lower Caves | Attracted the attention of an 0b10 checkpoint 4147 | -7/Lower Caves | Spotted B-75 Beast 4216 | -7/Lower Caves | Discovered new exit (range 7) 4233 | -7/Lower Caves | Entered Data Miner 4233 | -7/Data Miner | Discovered new exit (range 6) 4238 | -7/Data Miner | Met Data Miner 4243 | -7/Data Miner | Learned location of Section 7 (-2) 4243 | -7/Data Miner | Acquired the access code to Warlord's prototype stash 4246 | -7/Data Miner | Received God Mode back door access code from Data Miner 4253 | -7/Data Miner | Data Conduit disabled 4264 | -7/Data Miner | Core integrity fell below 50% 4264 | -7/Data Miner | Entered Proximity Caves 4266 | -6/Proximity Caves | Reached level 16 4381 | -6/Proximity Caves | Attracted the attention of an 0b10 outpost 4435 | -6/Proximity Caves | Reached level 17 4507 | -6/Proximity Caves | Upgraded with Utility slot (x1) 4512 | -6/Proximity Caves | Discovered exit to Factory (range 14) 4634 | -6/Proximity Caves | Spotted B-75 Beast 4823 | -6/Proximity Caves | Entered Factory 4824 | -6/Factory | Identified exit to Factory 4824 | -6/Factory | Core integrity fell below 50% 4825 | -6/Factory | Loaded intel: 26 terminal locations 4825 | -6/Factory | Reached level 18 4826 | -6/Factory | Upgraded with Utility slot (x1) 5052 | -6/Factory | Discovered exit to Factory (range 15) 5095 | -6/Factory | Identified exit to Lower Caves 5170 | -6/Factory | Core integrity fell below 20% 5184 | -6/Factory | Spotted B-75 Beast 5216 | -6/Factory | Repaired Broken Cld. VTOL Module 5506 | -6/Factory | Reached level 19 5563 | -6/Factory | Fabricated Cld. VTOL Module (x1) 5640 | -6/Factory | Cargo convoy interrupted 5732 | -6/Factory | Discovered exit to Factory (range 15) 5803 | -6/Factory | Fabricated Cld. VTOL Module? 5835 | -6/Factory | Learned location of Upper Caves (-4) 5873 | -6/Factory | First assault squad dispatched 5914 | -6/Factory | Central database locked down 5928 | -6/Factory | Learned 4 Factory zone layouts 5960 | -6/Factory | Learned 2 Hub_04(d) zone layouts 5960 | -6/Factory | Fabricated Cld. VTOL Module? 5964 | -6/Factory | Fabricated Cld. VTOL Module? 6004 | -6/Factory | Learned location of 1 exit from Extension 6129 | -6/Factory | Discovered exit to Factory (range 10) 6141 | -6/Factory | Entered Lower Caves 6253 | -6/Lower Caves | Reached level 20 6253 | -6/Lower Caves | Attracted the attention of an 0b10 outpost 6324 | -6/Lower Caves | Discovered new exit (range 18) 6326 | -6/Lower Caves | Acquired the password to a Derelict Tinkerer's latest research 6326 | -6/Lower Caves | Destroyed 8 combat bots 6329 | -6/Lower Caves | Found Prototype Special Weapon 6329 | -6/Lower Caves | Identified Molecular Deconstructor 6373 | -6/Lower Caves | Entered another Lower Caves area 6375 | -6/Lower Caves | Discovered exit to Factory (range 8) 6453 | -6/Lower Caves | Destroyed 7 combat bots 6460 | -6/Lower Caves | Attacked by a delusional Derelict stockpiling parts 6467 | -6/Lower Caves | Learned Factory non-interactive machine intel 6474 | -6/Lower Caves | Entered an active Warlord outpost 6475 | -6/Lower Caves | Learned location of 1 exit from Factory 6475 | -6/Lower Caves | Learned Extension trap positions 6475 | -6/Lower Caves | Learned Armory stockpile data 6529 | -6/Lower Caves | Encountered a Warlord checkpoint 6549 | -6/Lower Caves | Discovered new exit (range 14) 6550 | -6/Lower Caves | Learned location of 1 exit from Factory 6558 | -6/Lower Caves | Entered Zion 6574 | -6/Zion | Discovered new exit (range 18) 6576 | -6/Zion | Given A8's code to call for help 6603 | -6/Zion | Learned location of Quarantine (-2) 6605 | -6/Zion | Learned Factory emergency access door positions 6677 | -6/Zion | Given the Hacking Drone Bay 6678 | -6/Zion | Found Prototype Device 6678 | -6/Zion | Identified Hacking Drone Bay 6702 | -6/Zion | Found CR-A16's Pointy Stick 6731 | -6/Zion | Acquired unknown access codes intercepted by a Zionite 6739 | -6/Zion | Discovered new exit (range 18) 6742 | -6/Zion | Opened final containment barrier to the Deep Caves 6745 | -6/Zion | Saw the warning signs outside the Deep Caves entrance 6798 | -6/Zion | Entered Proximity Caves 6832 | -5/Proximity Caves | Reached level 21 6881 | -5/Proximity Caves | Upgraded with Utility slot (x1) 7149 | -5/Proximity Caves | Received a Behemoth hack from an annoying Tinkerer 7468 | -5/Proximity Caves | Attracted the attention of an 0b10 checkpoint 7733 | -5/Proximity Caves | Reached level 22 7738 | -5/Proximity Caves | Discovered exit to Factory (range 16) 7787 | -5/Proximity Caves | Entered Factory 7788 | -5/Factory | Identified exit to Upper Caves 7789 | -5/Factory | Identified exit to Extension 7790 | -5/Factory | Identified exit to Factory 7792 | -5/Factory | Loaded intel: 188 non-interactive machine locations 7913 | -5/Factory | Destroyed 7 combat bots 7967 | -5/Factory | Destroyed 7 combat bots 8087 | -5/Factory | First assault squad dispatched 8194 | -5/Factory | Reached level 23 8309 | -5/Factory | Discovered exit to Factory (range 20) 8466 | -5/Factory | Cargo convoy interrupted 8507 | -5/Factory | Learned location of 1 exit from Upper Caves 8525 | -5/Factory | Found Prototype Device 8525 | -5/Factory | Identified Exp. ECM Suite 8527 | -5/Factory | Found Prototype Processor 8527 | -5/Factory | Identified Spectral Analyzer 8534 | -5/Factory | Core integrity fell below 50% 8553 | -5/Factory | Loaded intel: 27 terminal locations 8591 | -5/Factory | Learned location of 1 exit from Research 8599 | -5/Factory | Discovered exit to Factory (range 17) 8617 | -5/Factory | Learned 2 Armory zone layouts 8632 | -5/Factory | Learned 4 Upper Caves zone layouts 8637 | -5/Factory | Learned Quarantine scanalyzer intel 8638 | -5/Factory | Learned 8 Factory zone layouts 8645 | -5/Factory | Learned location of 1 exit from Proximity Caves 8663 | -5/Factory | Learned location of Upper Caves (-4) 8689 | -5/Factory | Learned Quarantine trap positions 8723 | -5/Factory | Learned Testing machine intel 8766 | -5/Factory | Entered Extension 8767 | -5/Extension | Identified exit to Cetus 8769 | -5/Extension | Loaded intel: 13 trap records 8862 | -5/Extension | Destroyed 7 combat bots 8967 | -5/Extension | Rescued a captive Derelict 8974 | -5/Extension | Rescued a captive Derelict 8990 | -5/Extension | Spotted B-75 Beast 8991 | -5/Extension | Rescued A7 9082 | -5/Extension | Spotted B-75 Beast 9114 | -5/Extension | Destroyed B-75 Beast 9117 | -5/Extension | Allies destroyed B-75 Beast 9146 | -5/Extension | Reached level 24 9166 | -5/Extension | Disrupted transfer network 9210 | -5/Extension | Destroyed 10 combat bots 9249 | -5/Extension | Upgraded with Utility slot (x1) 9346 | -5/Extension | Rescued a captive Derelict 9349 | -5/Extension | Rescued a captive Derelict 9467 | -5/Extension | Entered Cetus 9467 | -5/Cetus | Accompanied by 5 allies (A7) 9471 | -5/Cetus | Spotted Cetus Guard 9471 | -5/Cetus | Spotted Cetus Guard 9471 | -5/Cetus | Spotted Cetus Guard 9471 | -5/Cetus | Spotted Cetus Guard 9472 | -5/Cetus | Acquired a Cetus Manufacturing Module code from A7 9475 | -5/Cetus | Discovered exit to Factory (range 16) 9481 | -5/Cetus | Destroyed Cetus Guard 9483 | -5/Cetus | Destroyed Cetus Guard 9493 | -5/Cetus | Destroyed Cetus Guard 9495 | -5/Cetus | Destroyed Cetus Guard 9512 | -5/Cetus | Started Cetus Manufacturing Module 9520 | -5/Cetus | Escorted A7 to Cetus Mainframe 9537 | -5/Cetus | Manufactured an Enhanced Grunt 9540 | -5/Cetus | Discovered new exit (range 16) 9544 | -5/Cetus | Spotted Cetus Guard 9544 | -5/Cetus | Spotted Cetus Guard 9544 | -5/Cetus | Spotted Cetus Guard 9544 | -5/Cetus | Spotted Cetus Guard 9562 | -5/Cetus | Manufactured an Enhanced Grunt 9587 | -5/Cetus | Manufactured an Enhanced Grunt 9612 | -5/Cetus | Manufactured an Enhanced Grunt 9612 | -5/Cetus | Allies destroyed Cetus Guard 9616 | -5/Cetus | Allies destroyed Cetus Guard 9619 | -5/Cetus | Allies destroyed Cetus Guard 9622 | -5/Cetus | Allies destroyed Cetus Guard 9637 | -5/Cetus | Manufactured an Enhanced Grunt 9637 | -5/Cetus | Discovered exit to Factory (range 17) 9639 | -5/Cetus | Met Revision 17 9737 | -5/Cetus | Entered Archives 9737 | -5/Archives | Accompanied by 7 allies (A7) 9742 | -5/Archives | Received a hacking code to weaken MAIN.C 9753 | -5/Archives | Discovered exit to Factory (range 18) 9757 | -5/Archives | Unable to access archive contents 9763 | -5/Archives | Unable to access archive contents 9763 | -5/Archives | Discovered new exit (range 15) 9786 | -5/Archives | Unable to access archive contents 9786 | -5/Archives | Discovered new exit (range 15) 9788 | -5/Archives | Unable to access archive contents 9817 | -5/Archives | Entered Hub_04(d) 9817 | -5/Hub_04(d) | Accompanied by 5 allies 9904 | -5/Hub_04(d) | Reached level 25 9950 | -5/Hub_04(d) | Discovered exit to Factory (range 15) 9983 | -5/Hub_04(d) | Network Hub disabled 9986 | -5/Hub_04(d) | Spotted Lightning 9989 | -5/Hub_04(d) | Spotted Lightning 10016 | -5/Hub_04(d) | Network Hub disabled 10022 | -5/Hub_04(d) | Network Hub disabled 10049 | -5/Hub_04(d) | Spotted Lightning 10049 | -5/Hub_04(d) | Spotted Lightning 10077 | -5/Hub_04(d) | Network Hub disabled 10086 | -5/Hub_04(d) | Spotted Lightning 10086 | -5/Hub_04(d) | Spotted Lightning 10086 | -5/Hub_04(d) | Spotted Lightning 10086 | -5/Hub_04(d) | Spotted B-75 Beast 10097 | -5/Hub_04(d) | Entered Factory 10098 | -4/Factory | Identified exit to Armory 10099 | -4/Factory | Identified exit to Upper Caves 10281 | -4/Factory | Fabricated Cld. Q-thruster (x1) 10391 | -4/Factory | Discovered new exit (range 5) 10406 | -4/Factory | Learned 4 Research zone layouts 10451 | -4/Factory | Learned 4 Upper Caves zone layouts 10484 | -4/Factory | Learned Armory interactive machine intel 10516 | -4/Factory | Found Prototype Processor 10516 | -4/Factory | Identified Exp. Melee Analysis Suite 10520 | -4/Factory | Found Exp. Melee Analysis Suite 10522 | -4/Factory | Learned Research emergency access door positions 10529 | -4/Factory | Learned Armory security intel 10538 | -4/Factory | Learned Quarantine garrison access intel 10539 | -4/Factory | Identified exit to Research 10557 | -4/Factory | Learned 4 Armory zone layouts 10571 | -4/Factory | Reached level 26 10573 | -4/Factory | Upgraded with Utility slot (x1) 10584 | -4/Factory | Sucked down chute 10584 | -4/Factory | Entered Waste 10586 | -4/Waste | Spotted C-40 Crusher 10590 | -4/Waste | Spotted C-40 Crusher 10593 | -4/Waste | Discovered new exit (range 20) 10593 | -4/Waste | Spotted C-40 Crusher 10594 | -4/Waste | Spotted C-40 Crusher 10594 | -4/Waste | Spotted C-40 Crusher 10597 | -4/Waste | Entered Factory 10687 | -4/Factory | Repaired Broken Adv. Transmission Jammer 10695 | -4/Factory | Found Exp. Melee Analysis Suite 10951 | -4/Factory | Destroyed 9 combat bots 10958 | -4/Factory | Discovered exit to Research (range 8) 11057 | -4/Factory | Learned Armory fabricator intel 11102 | -4/Factory | Learned Testing security intel 11129 | -4/Factory | Garrison activated, responded to threat 11167 | -4/Factory | Loaded intel: 54 interactive machine locations 11181 | -4/Factory | Learned Quarantine trap positions 11187 | -4/Factory | Discovered exit to Research (range 17) 11231 | -4/Factory | Loaded intel: 6 repair station locations 11293 | -4/Factory | Fabricated Lgt. Antimatter Reactor? 11328 | -4/Factory | Fabricated Cld. Q-thruster (x1) 11463 | -4/Factory | Entered Research 11464 | -3/Research | Identified exit to Testing 11465 | -3/Research | Reached level 27 11489 | -3/Research | Found Prototype Device 11489 | -3/Research | Identified Exp. EM Disruption Field 11587 | -3/Research | Spotted B-86 Titan 11612 | -3/Research | Reached level 28 11612 | -3/Research | Upgraded with Utility slot (x1) 11622 | -3/Research | Spotted B-86 Titan 11641 | -3/Research | Found Prototype Processor 11641 | -3/Research | Identified Exp. Signal Interpreter 11663 | -3/Research | Revision forces began assault on 0b10 11681 | -3/Research | Discovered new exit (range 12) 11688 | -3/Research | Discovered new exit (range 24) 11712 | -3/Research | Learned Access emergency access door positions 11717 | -3/Research | Spotted B-86 Titan 11776 | -3/Research | Learned Testing stockpile data 11791 | -3/Research | Fabricated Adv. Phase Shifter? 11792 | -3/Research | Learned Research emergency access door positions 11799 | -3/Research | Learned location of 3 exits from Research 11805 | -3/Research | Identified exit to Research 11820 | -3/Research | Learned Quarantine security intel 12041 | -3/Research | Entered Testing 12043 | -3/Testing | Loaded intel: 67 machine locations 12097 | -3/Testing | Found Prototype Hackware 12097 | -3/Testing | Identified System Mapper 12152 | -3/Testing | Found Prototype Device 12152 | -3/Testing | Identified Exp. Focal Shield 12172 | -3/Testing | Destroyed PH-4ECOWPEB2N 12179 | -3/Testing | Found Prototype Processor 12179 | -3/Testing | Identified Exp. Targeting Computer 12194 | -3/Testing | Loaded intel: 19 trap records 12204 | -3/Testing | Spotted Striker 12204 | -3/Testing | Spotted Striker 12205 | -3/Testing | Spotted Alpha 7 12244 | -3/Testing | Learned 4 Access zone layouts 12250 | -3/Testing | Reached level 29 12250 | -3/Testing | Destroyed Striker 12291 | -3/Testing | First assault squad dispatched 12315 | -3/Testing | Learned Research emergency access door positions 12364 | -3/Testing | Destroyed PL-YO7665KUDL 12367 | -3/Testing | Found Prototype Processor 12367 | -3/Testing | Identified Exp. Core Analyzer 12371 | -3/Testing | Learned 4 Quarantine zone layouts 12415 | -3/Testing | Learned Quarantine emergency access door positions 12492 | -3/Testing | Found Prototype Protection 12492 | -3/Testing | Identified SHELL Armor 12556 | -3/Testing | Entered Research 12557 | -2/Research | Identified exit to Access 12557 | -2/Research | Identified exit to Quarantine 12558 | -2/Research | Reached level 30 12568 | -2/Research | Spotted B-90 Cyclops 12619 | -2/Research | Spotted B-90 Cyclops 12806 | -2/Research | First assault squad dispatched 12894 | -2/Research | Reached level 31 12909 | -2/Research | Upgraded with Utility slot (x1) 13045 | -2/Research | Central database locked down 13059 | -2/Research | Learned Access garrison access intel 13062 | -2/Research | Discovered exit to Access (range 21) 13223 | -2/Research | Destroyed 9 combat bots 13245 | -2/Research | Entered Quarantine 13247 | -2/Quarantine | Identified exit to Section 7 13247 | -2/Quarantine | Identified exit to Protoforge 13247 | -2/Quarantine | Reached level 32 13248 | -2/Quarantine | Loaded intel: 16 trap records 13250 | -2/Quarantine | Loaded intel: 3 scanalyzer locations 13251 | -2/Quarantine | Loaded intel: 1 garrison access location 13254 | -2/Quarantine | Spotted Alpha 7 13270 | -2/Quarantine | Destroyed Alpha 7 13339 | -2/Quarantine | Met incapacitated Sigix Warrior 13339 | -2/Quarantine | Lockdown squad dispatched 13387 | -2/Quarantine | Found Alien Artifact 13387 | -2/Quarantine | Identified Terrabomb 13387 | -2/Quarantine | Used Terrabomb 13407 | -2/Quarantine | Learned location of 1 exit from Research 13443 | -2/Quarantine | Learned Access repair station intel 13471 | -2/Quarantine | Learned Section 7 terminal intel 13490 | -2/Quarantine | Destroyed 7 combat bots 13496 | -2/Quarantine | Learned 4 Research zone layouts 13500 | -2/Quarantine | Learned 12 Research zone layouts 13516 | -2/Quarantine | Learned 4 Research zone layouts 13603 | -2/Quarantine | Spotted Fortress 13623 | -2/Quarantine | Entered Protoforge 13625 | -2/Protoforge | Reached level 33 13640 | -2/Protoforge | Superfortress began startup sequence 13652 | -2/Protoforge | Spotted Hotshot 13652 | -2/Protoforge | Spotted Hotshot 13656 | -2/Protoforge | Spotted Hotshot 13676 | -2/Protoforge | Spotted B-90 Cyclops 13711 | -2/Protoforge | Spotted Hotshot 13736 | -2/Protoforge | Spotted Hotshot 13736 | -2/Protoforge | Spotted Hotshot 13736 | -2/Protoforge | Spotted Hotshot 13736 | -2/Protoforge | Spotted Hotshot 13736 | -2/Protoforge | Spotted Hotshot 13743 | -2/Protoforge | Spotted Hotshot 13743 | -2/Protoforge | Spotted Hotshot 13743 | -2/Protoforge | Spotted Hotshot 13743 | -2/Protoforge | Spotted Hotshot 13796 | -2/Protoforge | Destroyed Hotshot 13809 | -2/Protoforge | Learned Research fabricator intel 13809 | -2/Protoforge | Core integrity fell below 50% 13817 | -2/Protoforge | Destroyed 10 combat bots 13837 | -2/Protoforge | Learned Access stockpile data 13846 | -2/Protoforge | Found Prototype Slashing Weapon 13846 | -2/Protoforge | Identified Exp. Terror Saw 13853 | -2/Protoforge | Learned Access non-interactive machine intel 13858 | -2/Protoforge | Found Prototype Device 13858 | -2/Protoforge | Identified Exp. System Purifier 13860 | -2/Protoforge | Learned 4 Access zone layouts 13861 | -2/Protoforge | Learned 4 Research zone layouts 13863 | -2/Protoforge | Found Prototype Device 13863 | -2/Protoforge | Identified Cep. Recoil Nullifier 13868 | -2/Protoforge | Learned Research trap positions 13887 | -2/Protoforge | Learned location of 1 exit from Research 13905 | -2/Protoforge | Spotted Decapitator 13905 | -2/Protoforge | Spotted V098-d 13905 | -2/Protoforge | Spotted V464-u 13940 | -2/Protoforge | Found Prototype Device 13940 | -2/Protoforge | Identified Crosscalibrator 13946 | -2/Protoforge | Spotted Decapitator 13946 | -2/Protoforge | Spotted Decapitator 13946 | -2/Protoforge | Spotted Decapitator 13946 | -2/Protoforge | Spotted Decapitator 13961 | -2/Protoforge | Scanned by Researcher 13978 | -2/Protoforge | Found Cep. Melee Reflex Suite 13980 | -2/Protoforge | Found Femtoactuators 14010 | -2/Protoforge | Spotted V801-o 14010 | -2/Protoforge | Spotted V817-w 14010 | -2/Protoforge | Spotted V612-i 14010 | -2/Protoforge | Spotted V862-o 14013 | -2/Protoforge | Found Cep. Fieldthrust Drive 14026 | -2/Protoforge | Found Faulty Cep. Fieldthrust Drive 14068 | -2/Protoforge | Destroyed V817-w 14070 | -2/Protoforge | Destroyed V612-i 14081 | -2/Protoforge | Destroyed V801-o 14108 | -2/Protoforge | Found Prototype Processor 14108 | -2/Protoforge | Identified Exp. Target Analyzer 14118 | -2/Protoforge | Destroyed 7 combat bots 14123 | -2/Protoforge | First assault squad dispatched 14128 | -2/Protoforge | Destroyed Decapitator 14131 | -2/Protoforge | Destroyed Decapitator 14133 | -2/Protoforge | Destroyed Decapitator 14136 | -2/Protoforge | Found Exp. Terror Saw 14143 | -2/Protoforge | Found Cep. Reaction Jets 14150 | -2/Protoforge | Found Faulty Cep. Projectile Intercept Suite 14164 | -2/Protoforge | Found Cep. Projectile Intercept Suite 14166 | -2/Protoforge | Found Prototype Device 14166 | -2/Protoforge | Identified Cep. Energy Mantle 14171 | -2/Protoforge | Spotted V217-p 14173 | -2/Protoforge | Destroyed V217-p 14175 | -2/Protoforge | Found Cep. Phase Shift Module 14177 | -2/Protoforge | Found Prototype Device 14177 | -2/Protoforge | Identified Cep. Antimissile System 14180 | -2/Protoforge | Found Prototype Device 14180 | -2/Protoforge | Identified Exp. Remote Shield 14182 | -2/Protoforge | Found Prototype Device 14182 | -2/Protoforge | Identified Exp. Force Field 14189 | -2/Protoforge | Destroyed Decapitator 14214 | -2/Protoforge | Spotted Decapitator 14214 | -2/Protoforge | Spotted Decapitator 14214 | -2/Protoforge | Spotted Decapitator 14231 | -2/Protoforge | Spotted V682-g 14231 | -2/Protoforge | Spotted V575-z 14232 | -2/Protoforge | Spotted Immortal 14232 | -2/Protoforge | Spotted Immortal 14233 | -2/Protoforge | Spotted V920-x 14236 | -2/Protoforge | Found Cep. Zero-point Core 14323 | -2/Protoforge | Spotted AP7-3 14323 | -2/Protoforge | Spotted AP7-3 14343 | -2/Protoforge | Destroyed AP7-3 14354 | -2/Protoforge | Destroyed AP7-3 14360 | -2/Protoforge | Found Prototype Processor 14360 | -2/Protoforge | Identified Cep. Core Analysis Suite 14362 | -2/Protoforge | Found Prototype Device 14362 | -2/Protoforge | Identified Cep. Thermoelectric Network 14366 | -2/Protoforge | Found Faulty Cep. Blasthammer 14410 | -2/Protoforge | Additional patrols dispatched to research labs 14413 | -2/Protoforge | Found Prototype Device 14413 | -2/Protoforge | Identified Cep. Navigation Harness 14423 | -2/Protoforge | Found Alien Artifact 14423 | -2/Protoforge | Identified Transdimensional Reconstructor 14423 | -2/Protoforge | Warped through subspace 14437 | -2/Protoforge | Found Cep. Nanofilaments [Tensile] 14437 | -2/Protoforge | Installed Cep. Nanofilaments [Tensile], 3 resistances modified: KI +20%, TH -10%, I +20% 14486 | -2/Protoforge | Spotted Decapitator 14487 | -2/Protoforge | Destroyed Decapitator 14487 | -2/Protoforge | Destroyed Decapitator 14492 | -2/Protoforge | Destroyed Decapitator 14504 | -2/Protoforge | Found Prototype Piercing Weapon 14504 | -2/Protoforge | Identified Exp. Jetlance 14509 | -2/Protoforge | Found Faulty Cep. Deflector Sword 14514 | -2/Protoforge | Found Exp. Jetlance 14522 | -2/Protoforge | Spotted V441-m 14524 | -2/Protoforge | Found Cep. Deflector Sword 14527 | -2/Protoforge | Destroyed V441-m 14534 | -2/Protoforge | Found Exp. Jetlance 14543 | -2/Protoforge | Core integrity fell below 20% 14550 | -2/Protoforge | Reached level 34 14551 | -2/Protoforge | Spotted V044-q 14575 | -2/Protoforge | Spotted EXE-6 14575 | -2/Protoforge | Spotted EXE-6 14583 | -2/Protoforge | Spotted Decapitator 14583 | -2/Protoforge | Spotted Decapitator 14592 | -2/Protoforge | Destroyed Decapitator 14593 | -2/Protoforge | Destroyed Decapitator 14603 | -2/Protoforge | Spotted EXE-6 14603 | -2/Protoforge | Spotted EXE-6 14606 | -2/Protoforge | Spotted AP7-3 14606 | -2/Protoforge | Spotted AP7-3 14636 | -2/Protoforge | Destroyed V575-z 14690 | -2/Protoforge | Destroyed EXE-6 14696 | -2/Protoforge | Destroyed EXE-6 14720 | -2/Protoforge | Destroyed EXE-6 14722 | -2/Protoforge | Destroyed EXE-6 14827 | -2/Protoforge | Destroyed AP7-3 14840 | -2/Protoforge | Destroyed by Y-72 Warden with Railgun Last Messages --------------- Zone 6W. 14799_ Connecting with Terminal... >>Trojan(Track) Trojan loaded successfully. Testing... Tracking enabled and active. 14811_ Adv. Corruption Screen intercepted 1% system corruption. 14815_ Connecting with Terminal... >>Trojan(Disrupt) Trojan loaded successfully. Testing... Disruption routine running. 14825_ Exp. Jetlance follow-up attack on AP7-3. 14825_ AP7-3 suffers critical hit (Impale). 14827_ AP7-3 destroyed. 14833_ W-44 Eye sends out distress signal. 14840_ Cld. Q-thruster destroyed. 14840_ Penetrated by Slug. Map ----- +----------------------------------------------------+ | #######????????g???# #??????# "" " | | ##############???????# m??# "" #??????# " | | ###### ######????????# m??# """ #??????# "" | | ###### #####?????????# ??# "T #??????# " | | ######/####??????????# ??# """ #??????# " | | #####? ? ?????????# ?# "" #??????# "" | | ##### ?????######### ?# #?####?# " " | | ##### ??? ??# ####+###### ### """ | | ##### ??? ?# m um + " """ "" | | ####?? ? ??+ + "" | | #?###? ?? ???# + | | #####???? ???# """" """" ###### ### | | #?##?? ? ????????""" """" 7#????###?# """"""" | | ##?##????????#????"" """" #????????# """ " | | ?##??????????? """" """" #????????# " | | ##??##??????## w #????????# | | ##?#??##????#? """" """" #????????# "" | | ###??????????? """" """" ########?# "" | | ### ????????# """" """" # #?# "" " | | ### ? ??????## """" """" *!#= "T" ### " " | | ?? ?????? [[+%! "## " | | ??? ???? =!#! ### " " | | ??? ????? """ """ !# #?# " """ | | ##?###?#????????"""T""" # #?# | | ##??#?#??????????#######;#############?# " " | | #???? ? ??#??????????# @ Y#??????# | | ?#? ??????????????????# """ ##??????# "" | | ?#????????????????????# """ #???????# "" "" | | # ????"??????????????#""" """ #???????# " | | ????" ????????????????#""" #???????# "" "" | | #????????????????????#"S """ #???????# "" | | ?#??"?????????????????#""" """ #???????# "" | | ?? ??????????????????# "" """ #???????# " | | ???????????????????????? ?????????# "" | | ???#??????????????????????#+#??????????# """ | | ? ???? ???????????????????????????????######## # | | ??????????????????????????????????????????????#### | | ?????????????????????????????????????????????????? | | ??? ???????????????????????????????????????????? | | ?##??????? ??????????????????????????????????????? | | ? ?? ???????????????????????????????????????????? | | ?? ????? ???????????????????????????????????????? | | ??? #???????#??????????????????????????????????? | | ? ?? ?#?????????????????????????????????????????? | | ""?"???#?????????????????????????????????????????? | | ?"??? ???????????????????????????????????????????? | | ??""??###????????????????????????????????????????? | | ????????????????????????????????????????????? | | #?#??##??????????????????????????????????????????? | | #?##?#???????????????????????????????????????????? | +----------------------------------------------------+ Best States ------------- Heat Dissipation 67 Energy Generation 83 Energy Capacity 870 Matter Stores 300 Matter Capacity 300 Sight Range 18 Robot Scan Range 4 Terrain Scan Range 24 Terrain Scan Density 610 Jamming Range 16 Cloak Strength 4 Corruption Block 20 Resistance: KI 20 Resistance: I 20 Projectile Deflection 15 Melee Speed Boost 50 Phase Shifting 25 Evasion (%) 110 Targeting Accuracy 12 Melee Accuracy 24 Target Analysis 14 Core Analysis 8 Armor Integrity Analysis 40 Offensive Hacking 40 Defensive Hacking 29 Authchip Count 1 Item Schematics ----------------- Powered Hammer | -8/Materials | Scanalyzed Imp. Target Analyzer | -7/Factory | Hacked Cld. VTOL Module | -7/Factory | Scanalyzed Utility Shielding | -7/Factory | Hacked Spear | -7/Factory | Hacked Combat Drone Bay | -7/Data Miner | Free Lgt. Regenerative Plating | -7/Data Miner | Free Multireflex Exoskeleton | -7/Data Miner | Free Exp. Power Shielding | -7/Data Miner | Free Scatter Rocket Array | -7/Data Miner | Free Cmb. Gravmag System | -7/Data Miner | Free Lyr. Heavy Armor Plating | -7/Data Miner | Free Tesla Rifle | -7/Data Miner | Free Imp. Arc Projector | -7/Data Miner | Free Lgt. Antimatter Reactor | -7/Data Miner | Free Impulse Thruster | -7/Data Miner | Free Cld. Q-thruster | -5/Factory | Scanalyzed Q-thruster | -5/Extension | Hacked Phasing Sabre | -4/Factory | Scanalyzed Imp. Force Field | -4/Factory | Scanalyzed Adv. Phase Shifter | -3/Research | Hacked Adv. Force Field | -3/Research | Scanalyzed Adv. EM Disruption Field | -3/Testing | Archive Imp. Particle Accelerator | -3/Testing | Archive Gravity Neutralizer | -3/Testing | Archive Neutron Missile Launcher | -3/Testing | Archive Datajack | -3/Testing | Hacked Centrium Medium Armor Plating | -3/Testing | Archive Stealth Drone Bay | -3/Testing | Archive Lgt. Armor Plating | -2/Quarantine | Hacked Nanoactuators | -2/Quarantine | Hacked Stasis Canceller | -2/Protoforge | Scanalyzed Com. Particle Reactor | -2/Protoforge | Archive Adv. Remote Shield | -2/Protoforge | Archive Diametric Drive | -2/Protoforge | Archive Imp. KE Penetrator | -2/Protoforge | Archive Coolant Network | -2/Protoforge | Archive Tesla Bomb Launcher | -2/Protoforge | Archive Adv. Variable Charge Gun | -2/Protoforge | Archive Hds. Centrium Heavy Treads | -2/Protoforge | Archive Exp. Signal Interpreter | -2/Protoforge | Archive Exp. Hacking Suite | -2/Protoforge | Archive Nanosword | -2/Protoforge | Archive Robot Schematics ------------------ B-48 Gladiator | -7/Data Miner | Free L-41 Fighter | -7/Data Miner | Free G-47 Trooper | -7/Data Miner | Free H-66 Slayer | -7/Data Miner | Free A-02 Transporter | -4/Factory | Hacked R-06 Scavenger | -4/Factory | Hacked G-50 Soldier | -4/Factory | Hacked I-47 Archangel | -3/Testing | Archive T-07 Excavator | -3/Testing | Archive R-10 Processor | -3/Testing | Archive S-43 Plague | -3/Testing | Archive A-27 Freighter | -2/Protoforge | Archive H-88 Terminator | -2/Protoforge | Archive B-74 Champion | -2/Protoforge | Archive G-73 Enforcer | -2/Protoforge | Archive Fabricated ------------ Cld. VTOL Module | x1 | -7/Factory | Authchip Cld. VTOL Module | x1 | -7/Factory Cld. VTOL Module | x1 | -6/Factory Cld. VTOL Module | x1 | -6/Factory Cld. VTOL Module | x1 | -6/Factory Cld. VTOL Module | x1 | -6/Factory Cld. Q-thruster | x1 | -4/Factory Lgt. Antimatter Reactor | x2 | -4/Factory Cld. Q-thruster | x1 | -4/Factory Adv. Phase Shifter | x2 | -3/Research Repaired ---------- Cld. VTOL Module | 95% | -6/Factory | Broken Adv. Transmission Jammer | 13% | -4/Factory | Broken Studied --------- Flight Unit | -9/Materials | Hacked Mace | -9/Materials | Hacked Maul | -9/Materials | Hacked VTOL Module | -8/Materials | Hacked Hvy. Mace | -8/Materials | Hacked Powered Hammer | -7/Factory | Hacked Lgt. Fission Core | -6/Factory | Hacked Greatsword | -6/Factory | Hacked Fusion Compressor | -5/Factory | Hacked Power Sword | -4/Factory | Hacked Lance | -3/Research | Hacked Imp. Fusion Compressor | -2/Quarantine | Hacked Alien Tech Used ----------------- Terrabomb Transdimensional Reconstructor Concept Nanofilaments [Tensile] Achievements -------------- 404 Anti-science Crusade Botjacking Highlander I Laugh At Your Crits IP Theft Jackpot Martial Artist Official Business Physics Protects Super-what Now? Challenges ------------ None RPGLIKE | -11 -10 -10 -9 -9 -8 -7 -7 -7 -7 -6 -6 -6 -6 -6 -5 -5 -5 -5 -5 -5 -4 -4 -4 -3 -3 -2 -2 -2 --------- Run | Yrd Mat Min Mat Sto Mat Fac Low Low Dat Pro Fac Low Low Zio Pro Fac Ext Cet Arc Hub Fac Was Fac Res Tes Res Qua Frg Levels Raised 33 | . . 1 3 2 4 3 . 1 . 2 2 1 . . 2 1 1 . . 1 1 . . 2 1 2 1 2 XP Earned 52714 | 3000 930 762 5639 2525 5208 4534 1348 1031 316 2661 3123 571 301 118 2459 2187 1358 421 233 557 1280 46 1344 2223 1534 3551 1301 2153 XP Spent 49555 | . 2700 1800 3900 1350 4200 8310 . 1300 . 2000 3590 . . . 2825 1750 2900 . . . 3200 . . 3500 . 3970 . 2260 Upgrades 63 | . 6 3 8 3 9 10 . 2 . 1 5 . . . 4 2 1 . . . 1 . . 1 . 2 . 5 Power Slot 1 | . . . . . . 1 . . . . . . . . . . . . . . . . . . . . . . Propulsion Slot 5 | . . 1 . 1 1 2 . . . . . . . . . . . . . . . . . . . . . . Utility Slot 12 | . . 2 1 . 1 1 . . . 1 1 . . . 1 . 1 . . . 1 . . 1 . 1 . . Weapon Slot 3 | . . . 1 . 1 1 . . . . . . . . . . . . . . . . . . . . . . Core Integrity 4 | . . . . . . . . . . . . . . . . . . . . . . . . . . . . 4 Heat Dissipation 7 | . . . . . . 3 . . . . 2 . . . . 1 . . . . . . . . . 1 . . Energy Generation 2 | . . . . 1 . . . . . . 1 . . . . . . . . . . . . . . . . . Mass Support 5 | . . . 1 . . 2 . . . . . . . . . 1 . . . . . . . . . . . 1 Inventory Capacity 2 | . . . . 1 . . . . . . 1 . . . . . . . . . . . . . . . . . Sight Range 1 | . . . . . . . . . . . . . . . 1 . . . . . . . . . . . . . Sensor Range 2 | . . . . . . . . . . . . . . . 2 . . . . . . . . . . . . . Terrain Scan Density 6 | . . . . . 6 . . . . . . . . . . . . . . . . . . . . . . . Melee Accuracy 6 | . . . 4 . . . . 2 . . . . . . . . . . . . . . . . . . . . Hack Attack % 4 | . 3 . 1 . . . . . . . . . . . . . . . . . . . . . . . . . Hack Defense % 3 | . 3 . . . . . . . . . . . . . . . . . . . . . . . . . . . Protomatter Created 9205 | . 2 . 335 131 266 125 139 145 . 158 669 200 169 . 457 968 665 48 . 228 356 . 1123 210 493 769 294 1255 Integrity Restored 15485 | . . 133 890 386 777 195 389 354 . 417 1404 428 216 . 922 1462 809 81 153 253 803 . 1102 297 692 716 216 2390 Core 12108 | . . 125 858 331 644 195 276 278 . 417 1048 360 128 . 733 1164 383 52 134 186 565 . 737 210 434 508 146 2196 Parts 3377 | . . 8 32 55 133 . 113 76 . . 356 68 88 . 189 298 426 29 19 67 238 . 365 87 258 208 70 194 Protomatter Decayed 4422 | . . 61 118 . . 95 18 . . . 69 54 131 45 31 415 277 58 . 105 152 . 677 953 294 342 177 350 Game ------ Seed TimingStructuralMatterbank Manual? 0 Play Time 07:01:29 Cumulative 190.5 hours Start 2026.02.19 @ 12:37:53 End 2026.02.19 @ 22:51:23 Sessions 3 Manual Loads 0 Difficulty Rogue Special Mode Winter2019/RPGLIKE Game No. 195 Rogue 195 Adventurer 0 Explorer 0 Win Type - Total 13 Types 11/0/0/1/0/0/1/0/0/0 Lore% 44 Gallery% 56 Achievement% 46 Wizard Run 0 Options --------- Layout 2 ASCII 0 Keyboard 0 Movement Numpad Keybinds 0 Fullscreen 1 Font 24/Smallcaps Map View 50x44 Zoom Use 0% Tactical HUD 1 Map Filters NONE Filters NONE Steam 1 RUN: 959458c7-38c2-4feb-ac5c-8aa13f9e9dad